Workbook

Sheet 홈페이지 게시용 시트 모음→

Sheet 은평구총괄
B1: 은평구 등록장애인 현황 (2025. 11월 말 기준)
B3: 서울특별시 은평구 | J3: (단위 : 명)
B5: 자치구 | C5: 장애유형 | D5: 합계 | G5: 심한 장애 | J5: 심하지 않은 장애
D6: 계 | E6: 남 | F6: 여 | G6: 계 | H6: 남 | I6: 여 | J6: 계 | K6: 남 | L6: 여
B7: 은평구 | C7: 합 계 | D7: 21135 | E7: 12268 | F7: 8867 | G7: 8042 | H7: 4996 | I7: 3046 | J7: 13093 | K7: 7272 | L7: 5821
C8: 지체 | D8: 8191 | E8: 4449 | F8: 3742 | G8: 1330 | H8: 848 | I8: 482 | J8: 6861 | K8: 3601 | L8: 3260
C9: 시각 | D9: 2267 | E9: 1330 | F9: 937 | G9: 443 | H9: 239 | I9: 204 | J9: 1824 | K9: 1091 | L9: 733
C10: 청각 | D10: 3328 | E10: 1841 | F10: 1487 | G10: 605 | H10: 301 | I10: 304 | J10: 2723 | K10: 1540 | L10: 1183
C11: 언어 | D11: 166 | E11: 119 | F11: 47 | G11: 93 | H11: 66 | I11: 27 | J11: 73 | K11: 53 | L11: 20
C12: 지적 | D12: 1895 | E12: 1243 | F12: 652 | G12: 1895 | H12: 1243 | I12: 652 | J12: 0 | K12: 0 | L12: 0
C13: 뇌병변 | D13: 2054 | E13: 1214 | F13: 840 | G13: 1133 | H13: 634 | I13: 499 | J13: 921 | K13: 580 | L13: 341
C14: 자폐성 | D14: 529 | E14: 436 | F14: 93 | G14: 529 | H14: 436 | I14: 93 | J14: 0 | K14: 0 | L14: 0
C15: 정신 | D15: 1102 | E15: 664 | F15: 438 | G15: 1063 | H15: 644 | I15: 419 | J15: 39 | K15: 20 | L15: 19
C16: 신장 | D16: 992 | E16: 597 | F16: 395 | G16: 769 | H16: 469 | I16: 300 | J16: 223 | K16: 128 | L16: 95
C17: 심장 | D17: 45 | E17: 26 | F17: 19 | G17: 31 | H17: 14 | I17: 17 | J17: 14 | K17: 12 | L17: 2
C18: 호흡기 | D18: 111 | E18: 77 | F18: 34 | G18: 104 | H18: 75 | I18: 29 | J18: 7 | K18: 2 | L18: 5
C19: 간 | D19: 174 | E19: 108 | F19: 66 | G19: 7 | H19: 4 | I19: 3 | J19: 167 | K19: 104 | L19: 63
C20: 안면 | D20: 23 | E20: 13 | F20: 10 | G20: 9 | H20: 6 | I20: 3 | J20: 14 | K20: 7 | L20: 7
C21: 장루.요루 | D21: 194 | E21: 120 | F21: 74 | G21: 18 | H21: 10 | I21: 8 | J21: 176 | K21: 110 | L21: 66
C22: 뇌전증 | D22: 64 | E22: 31 | F22: 33 | G22: 13 | H22: 7 | I22: 6 | J22: 51 | K22: 24 | L22: 27

Sheet 유형별
A1: 은평구 동별 장애인현황(유형별) (2025. 11월말)
A2: 동별 | B2: 합계 | E2: 지체 | H2: 시각 | K2: 청각 | N2: 언어 | Q2: 지적 | T2: 뇌병변 | W2: 자폐 | Z2: 정신 | AC2: 신장 | AF2: 심장 | AI2: 호흡기 | AL2: 간 | AO2: 안면 | AR2: 장루.요루 | AU2: 뇌전증
B3: 합계 | C3: 남성 | D3: 여성 | E3: 소계 | F3: 남성 | G3: 여성 | H3: 소계 | I3: 남성 | J3: 여성 | K3: 소계 | L3: 남성 | M3: 여성 | N3: 소계 | O3: 남성 | P3: 여성 | Q3: 소계 | R3: 남성 | S3: 여성 | T3: 소계 | U3: 남성 | V3: 여성 | W3: 소계 | X3: 남성 | Y3: 여성 | Z3: 소계 | AA3: 남성 | AB3: 여성 | AC3: 소계 | AD3: 남성 | AE3: 여성 | AF3: 소계 | AG3: 남성 | AH3: 여성 | AI3: 소계 | AJ3: 남성 | AK3: 여성 | AL3: 소계 | AM3: 남성 | AN3: 여성 | AO3: 소계 | AP3: 남성 | AQ3: 여성 | AR3: 소계 | AS3: 남성 | AT3: 여성 | AU3: 소계 | AV3: 남성 | AW3: 여성
A4: 합 계 | B4: 21135 | C4: 12268 | D4: 8867 | E4: 8191 | F4: 4449 | G4: 3742 | H4: 2267 | I4: 1330 | J4: 937 | K4: 3328 | L4: 1841 | M4: 1487 | N4: 166 | O4: 119 | P4: 47 | Q4: 1895 | R4: 1243 | S4: 652 | T4: 2054 | U4: 1214 | V4: 840 | W4: 529 | X4: 436 | Y4: 93 | Z4: 1102 | AA4: 664 | AB4: 438 | AC4: 992 | AD4: 597 | AE4: 395 | AF4: 45 | AG4: 26 | AH4: 19 | AI4: 111 | AJ4: 77 | AK4: 34 | AL4: 174 | AM4: 108 | AN4: 66 | AO4: 23 | AP4: 13 | AQ4: 10 | AR4: 194 | AS4: 120 | AT4: 74 | AU4: 64 | AV4: 31 | AW4: 33
A5: 녹번동 | B5: 1627 | C5: 938 | D5: 689 | E5: 680 | F5: 374 | G5: 306 | H5: 176 | I5: 115 | J5: 61 | K5: 293 | L5: 162 | M5: 131 | N5: 13 | O5: 9 | P5: 4 | Q5: 117 | R5: 74 | S5: 43 | T5: 152 | U5: 77 | V5: 75 | W5: 23 | X5: 17 | Y5: 6 | Z5: 62 | AA5: 34 | AB5: 28 | AC5: 77 | AD5: 51 | AE5: 26 | AF5: 2 | AG5: 1 | AH5: 1 | AI5: 4 | AJ5: 2 | AK5: 2 | AL5: 9 | AM5: 8 | AN5: 1 | AO5: 2 | AP5: 2 | AQ5: 0 | AR5: 16 | AS5: 11 | AT5: 5 | AU5: 1 | AV5: 1 | AW5: 0
A6: 불광1동 | B6: 1474 | C6: 820 | D6: 654 | E6: 579 | F6: 317 | G6: 262 | H6: 174 | I6: 101 | J6: 73 | K6: 231 | L6: 127 | M6: 104 | N6: 11 | O6: 8 | P6: 3 | Q6: 109 | R6: 65 | S6: 44 | T6: 143 | U6: 78 | V6: 65 | W6: 29 | X6: 23 | Y6: 6 | Z6: 59 | AA6: 28 | AB6: 31 | AC6: 92 | AD6: 45 | AE6: 47 | AF6: 4 | AG6: 1 | AH6: 3 | AI6: 7 | AJ6: 7 | AK6: 0 | AL6: 17 | AM6: 9 | AN6: 8 | AO6: 1 | AP6: 1 | AQ6: 0 | AR6: 15 | AS6: 9 | AT6: 6 | AU6: 3 | AV6: 1 | AW6: 2
A7: 불광2동 | B7: 1449 | C7: 845 | D7: 604 | E7: 550 | F7: 309 | G7: 241 | H7: 165 | I7: 112 | J7: 53 | K7: 253 | L7: 145 | M7: 108 | N7: 14 | O7: 13 | P7: 1 | Q7: 116 | R7: 69 | S7: 47 | T7: 128 | U7: 76 | V7: 52 | W7: 35 | X7: 34 | Y7: 1 | Z7: 75 | AA7: 28 | AB7: 47 | AC7: 72 | AD7: 40 | AE7: 32 | AF7: 3 | AG7: 3 | AH7: 0 | AI7: 2 | AJ7: 2 | AK7: 0 | AL7: 7 | AM7: 4 | AN7: 3 | AO7: 3 | AP7: 1 | AQ7: 2 | AR7: 16 | AS7: 5 | AT7: 11 | AU7: 10 | AV7: 4 | AW7: 6
A8: 갈현1동 | B8: 686 | C8: 394 | D8: 292 | E8: 271 | F8: 142 | G8: 129 | H8: 89 | I8: 51 | J8: 38 | K8: 101 | L8: 58 | M8: 43 | N8: 4 | O8: 3 | P8: 1 | Q8: 60 | R8: 40 | S8: 20 | T8: 58 | U8: 39 | V8: 19 | W8: 18 | X8: 16 | Y8: 2 | Z8: 31 | AA8: 16 | AB8: 15 | AC8: 31 | AD8: 16 | AE8: 15 | AF8: 1 | AG8: 1 | AH8: 0 | AI8: 2 | AJ8: 2 | AK8: 0 | AL8: 9 | AM8: 5 | AN8: 4 | AO8: 0 | AP8: 0 | AQ8: 0 | AR8: 9 | AS8: 4 | AT8: 5 | AU8: 2 | AV8: 1 | AW8: 1
A9: 갈현2동 | B9: 1256 | C9: 726 | D9: 530 | E9: 501 | F9: 271 | G9: 230 | H9: 128 | I9: 82 | J9: 46 | K9: 197 | L9: 115 | M9: 82 | N9: 18 | O9: 14 | P9: 4 | Q9: 107 | R9: 68 | S9: 39 | T9: 115 | U9: 68 | V9: 47 | W9: 24 | X9: 16 | Y9: 8 | Z9: 74 | AA9: 34 | AB9: 40 | AC9: 56 | AD9: 35 | AE9: 21 | AF9: 5 | AG9: 2 | AH9: 3 | AI9: 7 | AJ9: 6 | AK9: 1 | AL9: 13 | AM9: 8 | AN9: 5 | AO9: 0 | AP9: 0 | AQ9: 0 | AR9: 8 | AS9: 6 | AT9: 2 | AU9: 3 | AV9: 1 | AW9: 2
A10: 구산동 | B10: 2108 | C10: 1452 | D10: 656 | E10: 585 | F10: 332 | G10: 253 | H10: 168 | I10: 101 | J10: 67 | K10: 229 | L10: 133 | M10: 96 | N10: 16 | O10: 11 | P10: 5 | Q10: 398 | R10: 309 | S10: 89 | T10: 225 | U10: 159 | V10: 66 | W10: 50 | X10: 40 | Y10: 10 | Z10: 306 | AA10: 269 | AB10: 37 | AC10: 67 | AD10: 49 | AE10: 18 | AF10: 0 | AG10: 0 | AH10: 0 | AI10: 22 | AJ10: 15 | AK10: 7 | AL10: 17 | AM10: 15 | AN10: 2 | AO10: 2 | AP10: 1 | AQ10: 1 | AR10: 19 | AS10: 15 | AT10: 4 | AU10: 4 | AV10: 3 | AW10: 1
A11: 대조동 | B11: 1242 | C11: 716 | D11: 526 | E11: 498 | F11: 272 | G11: 226 | H11: 149 | I11: 78 | J11: 71 | K11: 205 | L11: 120 | M11: 85 | N11: 7 | O11: 5 | P11: 2 | Q11: 74 | R11: 50 | S11: 24 | T11: 122 | U11: 73 | V11: 49 | W11: 26 | X11: 22 | Y11: 4 | Z11: 66 | AA11: 33 | AB11: 33 | AC11: 65 | AD11: 43 | AE11: 22 | AF11: 2 | AG11: 1 | AH11: 1 | AI11: 6 | AJ11: 5 | AK11: 1 | AL11: 6 | AM11: 3 | AN11: 3 | AO11: 1 | AP11: 1 | AQ11: 0 | AR11: 12 | AS11: 9 | AT11: 3 | AU11: 3 | AV11: 1 | AW11: 2
A12: 응암1동 | B12: 1310 | C12: 718 | D12: 592 | E12: 559 | F12: 287 | G12: 272 | H12: 152 | I12: 86 | J12: 66 | K12: 219 | L12: 104 | M12: 115 | N12: 6 | O12: 5 | P12: 1 | Q12: 76 | R12: 46 | S12: 30 | T12: 124 | U12: 78 | V12: 46 | W12: 35 | X12: 30 | Y12: 5 | Z12: 50 | AA12: 29 | AB12: 21 | AC12: 55 | AD12: 30 | AE12: 25 | AF12: 6 | AG12: 3 | AH12: 3 | AI12: 5 | AJ12: 5 | AK12: 0 | AL12: 9 | AM12: 5 | AN12: 4 | AO12: 2 | AP12: 2 | AQ12: 0 | AR12: 9 | AS12: 7 | AT12: 2 | AU12: 3 | AV12: 1 | AW12: 2
A13: 응암2동 | B13: 954 | C13: 531 | D13: 423 | E13: 362 | F13: 196 | G13: 166 | H13: 97 | I13: 52 | J13: 45 | K13: 153 | L13: 76 | M13: 77 | N13: 8 | O13: 6 | P13: 2 | Q13: 74 | R13: 48 | S13: 26 | T13: 93 | U13: 49 | V13: 44 | W13: 36 | X13: 30 | Y13: 6 | Z13: 47 | AA13: 30 | AB13: 17 | AC13: 50 | AD13: 25 | AE13: 25 | AF13: 3 | AG13: 2 | AH13: 1 | AI13: 10 | AJ13: 6 | AK13: 4 | AL13: 8 | AM13: 4 | AN13: 4 | AO13: 2 | AP13: 0 | AQ13: 2 | AR13: 6 | AS13: 3 | AT13: 3 | AU13: 5 | AV13: 4 | AW13: 1
A14: 응암3동 | B14: 1324 | C14: 732 | D14: 592 | E14: 509 | F14: 271 | G14: 238 | H14: 146 | I14: 80 | J14: 66 | K14: 253 | L14: 124 | M14: 129 | N14: 7 | O14: 5 | P14: 2 | Q14: 90 | R14: 60 | S14: 30 | T14: 141 | U14: 87 | V14: 54 | W14: 22 | X14: 16 | Y14: 6 | Z14: 53 | AA14: 29 | AB14: 24 | AC14: 57 | AD14: 37 | AE14: 20 | AF14: 3 | AG14: 1 | AH14: 2 | AI14: 9 | AJ14: 6 | AK14: 3 | AL14: 12 | AM14: 3 | AN14: 9 | AO14: 0 | AP14: 0 | AQ14: 0 | AR14: 15 | AS14: 11 | AT14: 4 | AU14: 7 | AV14: 2 | AW14: 5
A15: 역촌동 | B15: 2158 | C15: 1206 | D15: 952 | E15: 885 | F15: 463 | G15: 422 | H15: 206 | I15: 114 | J15: 92 | K15: 344 | L15: 199 | M15: 145 | N15: 18 | O15: 7 | P15: 11 | Q15: 202 | R15: 124 | S15: 78 | T15: 215 | U15: 129 | V15: 86 | W15: 45 | X15: 38 | Y15: 7 | Z15: 90 | AA15: 38 | AB15: 52 | AC15: 108 | AD15: 67 | AE15: 41 | AF15: 2 | AG15: 2 | AH15: 0 | AI15: 14 | AJ15: 7 | AK15: 7 | AL15: 11 | AM15: 7 | AN15: 4 | AO15: 2 | AP15: 1 | AQ15: 1 | AR15: 13 | AS15: 8 | AT15: 5 | AU15: 3 | AV15: 2 | AW15: 1
A16: 신사1동 | B16: 1249 | C16: 733 | D16: 516 | E16: 478 | F16: 273 | G16: 205 | H16: 152 | I16: 86 | J16: 66 | K16: 174 | L16: 109 | M16: 65 | N16: 16 | O16: 9 | P16: 7 | Q16: 149 | R16: 90 | S16: 59 | T16: 109 | U16: 60 | V16: 49 | W16: 32 | X16: 24 | Y16: 8 | Z16: 49 | AA16: 32 | AB16: 17 | AC16: 59 | AD16: 34 | AE16: 25 | AF16: 2 | AG16: 2 | AH16: 0 | AI16: 3 | AJ16: 1 | AK16: 2 | AL16: 7 | AM16: 4 | AN16: 3 | AO16: 2 | AP16: 1 | AQ16: 1 | AR16: 11 | AS16: 5 | AT16: 6 | AU16: 6 | AV16: 3 | AW16: 3
A17: 신사2동 | B17: 887 | C17: 506 | D17: 381 | E17: 378 | F17: 206 | G17: 172 | H17: 88 | I17: 60 | J17: 28 | K17: 139 | L17: 71 | M17: 68 | N17: 6 | O17: 6 | P17: 0 | Q17: 78 | R17: 45 | S17: 33 | T17: 71 | U17: 43 | V17: 28 | W17: 21 | X17: 17 | Y17: 4 | Z17: 26 | AA17: 12 | AB17: 14 | AC17: 50 | AD17: 28 | AE17: 22 | AF17: 3 | AG17: 1 | AH17: 2 | AI17: 7 | AJ17: 6 | AK17: 1 | AL17: 5 | AM17: 3 | AN17: 2 | AO17: 1 | AP17: 1 | AQ17: 0 | AR17: 9 | AS17: 4 | AT17: 5 | AU17: 5 | AV17: 3 | AW17: 2
A18: 증산동 | B18: 643 | C18: 378 | D18: 265 | E18: 274 | F18: 155 | G18: 119 | H18: 53 | I18: 31 | J18: 22 | K18: 116 | L18: 71 | M18: 45 | N18: 6 | O18: 3 | P18: 3 | Q18: 42 | R18: 26 | S18: 16 | T18: 52 | U18: 27 | V18: 25 | W18: 16 | X18: 16 | Y18: 0 | Z18: 32 | AA18: 15 | AB18: 17 | AC18: 30 | AD18: 19 | AE18: 11 | AF18: 1 | AG18: 1 | AH18: 0 | AI18: 3 | AJ18: 2 | AK18: 1 | AL18: 6 | AM18: 5 | AN18: 1 | AO18: 1 | AP18: 0 | AQ18: 1 | AR18: 8 | AS18: 7 | AT18: 1 | AU18: 3 | AV18: 0 | AW18: 3
A19: 수색동 | B19: 823 | C19: 438 | D19: 385 | E19: 319 | F19: 160 | G19: 159 | H19: 97 | I19: 51 | J19: 46 | K19: 127 | L19: 69 | M19: 58 | N19: 4 | O19: 4 | P19: 0 | Q19: 63 | R19: 41 | S19: 22 | T19: 97 | U19: 48 | V19: 49 | W19: 24 | X19: 20 | Y19: 4 | Z19: 31 | AA19: 13 | AB19: 18 | AC19: 36 | AD19: 19 | AE19: 17 | AF19: 1 | AG19: 0 | AH19: 1 | AI19: 3 | AJ19: 0 | AK19: 3 | AL19: 10 | AM19: 7 | AN19: 3 | AO19: 2 | AP19: 2 | AQ19: 0 | AR19: 9 | AS19: 4 | AT19: 5 | AU19: 0 | AV19: 0 | AW19: 0
A20: 진관동 | B20: 1945 | C20: 1135 | D20: 810 | E20: 763 | F20: 421 | G20: 342 | H20: 227 | I20: 130 | J20: 97 | K20: 294 | L20: 158 | M20: 136 | N20: 12 | O20: 11 | P20: 1 | Q20: 140 | R20: 88 | S20: 52 | T20: 209 | U20: 123 | V20: 86 | W20: 93 | X20: 77 | Y20: 16 | Z20: 51 | AA20: 24 | AB20: 27 | AC20: 87 | AD20: 59 | AE20: 28 | AF20: 7 | AG20: 5 | AH20: 2 | AI20: 7 | AJ20: 5 | AK20: 2 | AL20: 28 | AM20: 18 | AN20: 10 | AO20: 2 | AP20: 0 | AQ20: 2 | AR20: 19 | AS20: 12 | AT20: 7 | AU20: 6 | AV20: 4 | AW20: 2

Sheet 정도별
B2: 은평구 동별 장애인현황(정도별)
B3: *2025. 11월말 기준 | K3: (단위 : 명)
B4: 자치구 | C4: 동 | D4: 합계 | G4: 심한 장애 | J4: 심하지 않은 장애
D5: 계 | E5: 남자 | F5: 여자 | G5: 계 | H5: 남자 | I5: 여자 | J5: 계 | K5: 남자 | L5: 여자
B6: 은평구 | C6: 합 계 | D6: 21135 | E6: 12268 | F6: 8867 | G6: 8042 | H6: 4996 | I6: 3046 | J6: 13093 | K6: 7272 | L6: 5821
C7: 녹번동 | D7: 1627 | E7: 938 | F7: 689 | G7: 547 | H7: 317 | I7: 230 | J7: 1080 | K7: 621 | L7: 459
C8: 불광1동 | D8: 1474 | E8: 820 | F8: 654 | G8: 520 | H8: 287 | I8: 233 | J8: 954 | K8: 533 | L8: 421
C9: 불광2동 | D9: 1449 | E9: 845 | F9: 604 | G9: 514 | H9: 304 | I9: 210 | J9: 935 | K9: 541 | L9: 394
C10: 갈현1동 | D10: 686 | E10: 394 | F10: 292 | G10: 255 | H10: 153 | I10: 102 | J10: 431 | K10: 241 | L10: 190
C11: 갈현2동 | D11: 1256 | E11: 726 | F11: 530 | G11: 471 | H11: 278 | I11: 193 | J11: 785 | K11: 448 | L11: 337
C12: 구산동 | D12: 2108 | E12: 1452 | F12: 656 | G12: 1151 | H12: 895 | I12: 256 | J12: 957 | K12: 557 | L12: 400
C13: 대조동 | D13: 1242 | E13: 716 | F13: 526 | G13: 444 | H13: 273 | I13: 171 | J13: 798 | K13: 443 | L13: 355
C14: 응암1동 | D14: 1310 | E14: 718 | F14: 592 | G14: 455 | H14: 262 | I14: 193 | J14: 855 | K14: 456 | L14: 399
C15: 응암2동 | D15: 954 | E15: 531 | F15: 423 | G15: 372 | H15: 227 | I15: 145 | J15: 582 | K15: 304 | L15: 278
C16: 응암3동 | D16: 1324 | E16: 732 | F16: 592 | G16: 406 | H16: 245 | I16: 161 | J16: 918 | K16: 487 | L16: 431
C17: 역촌동 | D17: 2158 | E17: 1206 | F17: 952 | G17: 795 | H17: 460 | I17: 335 | J17: 1363 | K17: 746 | L17: 617
C18: 신사1동 | D18: 1249 | E18: 733 | F18: 516 | G18: 491 | H18: 302 | I18: 189 | J18: 758 | K18: 431 | L18: 327
C19: 신사2동 | D19: 887 | E19: 506 | F19: 381 | G19: 304 | H19: 185 | I19: 119 | J19: 583 | K19: 321 | L19: 262
C20: 증산동 | D20: 643 | E20: 378 | F20: 265 | G20: 230 | H20: 142 | I20: 88 | J20: 413 | K20: 236 | L20: 177
C21: 수색동 | D21: 823 | E21: 438 | F21: 385 | G21: 317 | H21: 181 | I21: 136 | J21: 506 | K21: 257 | L21: 249
C22: 진관동 | D22: 1945 | E22: 1135 | F22: 810 | G22: 770 | H22: 485 | I22: 285 | J22: 1175 | K22: 650 | L22: 525

Sheet 연령별
A1: 은평구 장애인 연령구간별(5세 간격), 장애정도별 등록 현황
A2: =정도별!B3 -> *2025. 11월말 기준
J3: (단위: 명)
A4: 구분 | B4: 나이 | C4: 합계 | F4: 심한 장애 | I4: 심하지 않은 장애
C5: 합계 | D5: 남성 | E5: 여성 | F5: 소계 | G5: 남성 | H5: 여성 | I5: 소계 | J5: 남성 | K5: 여성
A6: 합계 | B6: 합계 | C6: 21135 | D6: 12268 | E6: 8867 | F6: 8042 | G6: 4996 | H6: 3046 | I6: 13093 | J6: 7272 | K6: 5821
B7: 0~4 | C7: 38 | D7: 17 | E7: 21 | F7: 29 | G7: 14 | H7: 15 | I7: 9 | J7: 3 | K7: 6
B8: 5~9 | C8: 263 | D8: 176 | E8: 87 | F8: 244 | G8: 166 | H8: 78 | I8: 19 | J8: 10 | K8: 9
B9: 10~14 | C9: 315 | D9: 213 | E9: 102 | F9: 297 | G9: 203 | H9: 94 | I9: 18 | J9: 10 | K9: 8
B10: 15~19 | C10: 283 | D10: 196 | E10: 87 | F10: 243 | G10: 171 | H10: 72 | I10: 40 | J10: 25 | K10: 15
B11: 20~24 | C11: 347 | D11: 210 | E11: 137 | F11: 292 | G11: 184 | H11: 108 | I11: 55 | J11: 26 | K11: 29
B12: 25~29 | C12: 482 | D12: 298 | E12: 184 | F12: 368 | G12: 239 | H12: 129 | I12: 114 | J12: 59 | K12: 55
B13: 30~34 | C13: 545 | D13: 352 | E13: 193 | F13: 416 | G13: 275 | H13: 141 | I13: 129 | J13: 77 | K13: 52
B14: 35~39 | C14: 516 | D14: 333 | E14: 183 | F14: 324 | G14: 216 | H14: 108 | I14: 192 | J14: 117 | K14: 75
B15: 40~44 | C15: 627 | D15: 418 | E15: 209 | F15: 349 | G15: 214 | H15: 135 | I15: 278 | J15: 204 | K15: 74
B16: 45~49 | C16: 814 | D16: 565 | E16: 249 | F16: 410 | G16: 270 | H16: 140 | I16: 404 | J16: 295 | K16: 109
B17: 50~54 | C17: 1260 | D17: 842 | E17: 418 | F17: 618 | G17: 386 | H17: 232 | I17: 642 | J17: 456 | K17: 186
B18: 55~59 | C18: 1625 | D18: 1095 | E18: 530 | F18: 712 | G18: 456 | H18: 256 | I18: 913 | J18: 639 | K18: 274
B19: 60~64 | C19: 1928 | D19: 1306 | E19: 622 | F19: 701 | G19: 467 | H19: 234 | I19: 1227 | J19: 839 | K19: 388
B20: 65~69 | C20: 2491 | D20: 1546 | E20: 945 | F20: 813 | G20: 516 | H20: 297 | I20: 1678 | J20: 1030 | K20: 648
B21: 70~74 | C21: 2415 | D21: 1364 | E21: 1051 | F21: 687 | G21: 450 | H21: 237 | I21: 1728 | J21: 914 | K21: 814
B22: 75~79 | C22: 2579 | D22: 1335 | E22: 1244 | F22: 619 | G22: 358 | H22: 261 | I22: 1960 | J22: 977 | K22: 983
B23: 80~84 | C23: 2358 | D23: 1108 | E23: 1250 | F23: 472 | G23: 235 | H23: 237 | I23: 1886 | J23: 873 | K23: 1013
B24: 85~89 | C24: 1573 | D24: 657 | E24: 916 | F24: 314 | G24: 129 | H24: 185 | I24: 1259 | J24: 528 | K24: 731
B25: 90~94 | C25: 552 | D25: 196 | E25: 356 | F25: 111 | G25: 40 | H25: 71 | I25: 441 | J25: 156 | K25: 285
B26: 95~99 | C26: 106 | D26: 37 | E26: 69 | F26: 20 | G26: 7 | H26: 13 | I26: 86 | J26: 30 | K26: 56
B27: 100~104 | C27: 17 | D27: 4 | E27: 13 | F27: 2 | G27: 0 | H27: 2 | I27: 15 | J27: 4 | K27: 11
B28: 105~109 | C28: 1 | D28: 0 | E28: 1 | F28: 1 | G28: 0 | H28: 1 | I28: 0 | J28: 0 | K28: 0

Sheet 연령별,유형별
A1: 은평구 등록장애인 연령별, 유형별 현황
B2: =정도별!B3 -> *2025. 11월말 기준
A3: 구분 | B3: 나이 | C3: 합계 | F3: 지체 | I3: 시각 | L3: 청각 | O3: 언어 | R3: 지적 | U3: 뇌병변 | X3: 자폐 | AA3: 정신 | AD3: 신장 | AG3: 심장 | AJ3: 호흡기 | AM3: 간 | AP3: 안면 | AS3: 장루.요루 | AV3: 뇌전증
C4: 합계 | D4: 남성 | E4: 여성 | F4: 소계 | G4: 남성 | H4: 여성 | I4: 소계 | J4: 남성 | K4: 여성 | L4: 소계 | M4: 남성 | N4: 여성 | O4: 소계 | P4: 남성 | Q4: 여성 | R4: 소계 | S4: 남성 | T4: 여성 | U4: 소계 | V4: 남성 | W4: 여성 | X4: 소계 | Y4: 남성 | Z4: 여성 | AA4: 소계 | AB4: 남성 | AC4: 여성 | AD4: 소계 | AE4: 남성 | AF4: 여성 | AG4: 소계 | AH4: 남성 | AI4: 여성 | AJ4: 소계 | AK4: 남성 | AL4: 여성 | AM4: 소계 | AN4: 남성 | AO4: 여성 | AP4: 소계 | AQ4: 남성 | AR4: 여성 | AS4: 소계 | AT4: 남성 | AU4: 여성 | AV4: 소계 | AW4: 남성 | AX4: 여성
A5: 합계 | C5: 21135 | D5: 12268 | E5: 8867 | F5: 8191 | G5: 4449 | H5: 3742 | I5: 2267 | J5: 1330 | K5: 937 | L5: 3328 | M5: 1841 | N5: 1487 | O5: 166 | P5: 119 | Q5: 47 | R5: 1895 | S5: 1243 | T5: 652 | U5: 2054 | V5: 1214 | W5: 840 | X5: 529 | Y5: 436 | Z5: 93 | AA5: 1102 | AB5: 664 | AC5: 438 | AD5: 992 | AE5: 597 | AF5: 395 | AG5: 45 | AH5: 26 | AI5: 19 | AJ5: 111 | AK5: 77 | AL5: 34 | AM5: 174 | AN5: 108 | AO5: 66 | AP5: 23 | AQ5: 13 | AR5: 10 | AS5: 194 | AT5: 120 | AU5: 74 | AV5: 64 | AW5: 31 | AX5: 33
A6: 합계 | B6: 1 | C6: 6 | D6: 1 | E6: 5 | F6: 0 | G6: 0 | H6: 0 | I6: 0 | J6: 0 | K6: 0 | L6: 1 | M6: 1 | N6: 0 | O6: 0 | P6: 0 | Q6: 0 | R6: 0 | S6: 0 | T6: 0 | U6: 4 | V6: 0 | W6: 4 | X6: 0 | Y6: 0 | Z6: 0 | AA6: 0 | AB6: 0 | AC6: 0 | AD6: 0 | AE6: 0 | AF6: 0 | AG6: 0 | AH6: 0 | AI6: 0 | AJ6: 0 | AK6: 0 | AL6: 0 | AM6: 1 | AN6: 0 | AO6: 1 | AP6: 0 | AQ6: 0 | AR6: 0 | AS6: 0 | AT6: 0 | AU6: 0 | AV6: 0 | AW6: 0 | AX6: 0
B7: 2 | C7: 7 | D7: 4 | E7: 3 | F7: 0 | G7: 0 | H7: 0 | I7: 0 | J7: 0 | K7: 0 | L7: 1 | M7: 0 | N7: 1 | O7: 0 | P7: 0 | Q7: 0 | R7: 0 | S7: 0 | T7: 0 | U7: 6 | V7: 4 | W7: 2 | X7: 0 | Y7: 0 | Z7: 0 | AA7: 0 | AB7: 0 | AC7: 0 | AD7: 0 | AE7: 0 | AF7: 0 | AG7: 0 | AH7: 0 | AI7: 0 | AJ7: 0 | AK7: 0 | AL7: 0 | AM7: 0 | AN7: 0 | AO7: 0 | AP7: 0 | AQ7: 0 | AR7: 0 | AS7: 0 | AT7: 0 | AU7: 0 | AV7: 0 | AW7: 0 | AX7: 0
B8: 3 | C8: 10 | D8: 4 | E8: 6 | F8: 0 | G8: 0 | H8: 0 | I8: 0 | J8: 0 | K8: 0 | L8: 1 | M8: 0 | N8: 1 | O8: 0 | P8: 0 | Q8: 0 | R8: 2 | S8: 0 | T8: 2 | U8: 5 | V8: 2 | W8: 3 | X8: 1 | Y8: 1 | Z8: 0 | AA8: 0 | AB8: 0 | AC8: 0 | AD8: 1 | AE8: 1 | AF8: 0 | AG8: 0 | AH8: 0 | AI8: 0 | AJ8: 0 | AK8: 0 | AL8: 0 | AM8: 0 | AN8: 0 | AO8: 0 | AP8: 0 | AQ8: 0 | AR8: 0 | AS8: 0 | AT8: 0 | AU8: 0 | AV8: 0 | AW8: 0 | AX8: 0
B9: 4 | C9: 15 | D9: 8 | E9: 7 | F9: 0 | G9: 0 | H9: 0 | I9: 1 | J9: 1 | K9: 0 | L9: 1 | M9: 1 | N9: 0 | O9: 2 | P9: 1 | Q9: 1 | R9: 2 | S9: 1 | T9: 1 | U9: 5 | V9: 2 | W9: 3 | X9: 4 | Y9: 2 | Z9: 2 | AA9: 0 | AB9: 0 | AC9: 0 | AD9: 0 | AE9: 0 | AF9: 0 | AG9: 0 | AH9: 0 | AI9: 0 | AJ9: 0 | AK9: 0 | AL9: 0 | AM9: 0 | AN9: 0 | AO9: 0 | AP9: 0 | AQ9: 0 | AR9: 0 | AS9: 0 | AT9: 0 | AU9: 0 | AV9: 0 | AW9: 0 | AX9: 0
B10: 5 | C10: 26 | D10: 17 | E10: 9 | F10: 1 | G10: 1 | H10: 0 | I10: 1 | J10: 1 | K10: 0 | L10: 1 | M10: 1 | N10: 0 | O10: 3 | P10: 2 | Q10: 1 | R10: 7 | S10: 5 | T10: 2 | U10: 3 | V10: 0 | W10: 3 | X10: 10 | Y10: 7 | Z10: 3 | AA10: 0 | AB10: 0 | AC10: 0 | AD10: 0 | AE10: 0 | AF10: 0 | AG10: 0 | AH10: 0 | AI10: 0 | AJ10: 0 | AK10: 0 | AL10: 0 | AM10: 0 | AN10: 0 | AO10: 0 | AP10: 0 | AQ10: 0 | AR10: 0 | AS10: 0 | AT10: 0 | AU10: 0 | AV10: 0 | AW10: 0 | AX10: 0
B11: 6 | C11: 53 | D11: 30 | E11: 23 | F11: 0 | G11: 0 | H11: 0 | I11: 1 | J11: 1 | K11: 0 | L11: 3 | M11: 1 | N11: 2 | O11: 2 | P11: 0 | Q11: 2 | R11: 5 | S11: 2 | T11: 3 | U11: 6 | V11: 2 | W11: 4 | X11: 34 | Y11: 24 | Z11: 10 | AA11: 0 | AB11: 0 | AC11: 0 | AD11: 0 | AE11: 0 | AF11: 0 | AG11: 0 | AH11: 0 | AI11: 0 | AJ11: 0 | AK11: 0 | AL11: 0 | AM11: 0 | AN11: 0 | AO11: 0 | AP11: 0 | AQ11: 0 | AR11: 0 | AS11: 1 | AT11: 0 | AU11: 1 | AV11: 1 | AW11: 0 | AX11: 1
B12: 7 | C12: 57 | D12: 38 | E12: 19 | F12: 1 | G12: 0 | H12: 1 | I12: 1 | J12: 1 | K12: 0 | L12: 0 | M12: 0 | N12: 0 | O12: 3 | P12: 2 | Q12: 1 | R12: 13 | S12: 7 | T12: 6 | U12: 8 | V12: 3 | W12: 5 | X12: 31 | Y12: 25 | Z12: 6 | AA12: 0 | AB12: 0 | AC12: 0 | AD12: 0 | AE12: 0 | AF12: 0 | AG12: 0 | AH12: 0 | AI12: 0 | AJ12: 0 | AK12: 0 | AL12: 0 | AM12: 0 | AN12: 0 | AO12: 0 | AP12: 0 | AQ12: 0 | AR12: 0 | AS12: 0 | AT12: 0 | AU12: 0 | AV12: 0 | AW12: 0 | AX12: 0
B13: 8 | C13: 55 | D13: 37 | E13: 18 | F13: 0 | G13: 0 | H13: 0 | I13: 0 | J13: 0 | K13: 0 | L13: 1 | M13: 0 | N13: 1 | O13: 1 | P13: 1 | Q13: 0 | R13: 18 | S13: 14 | T13: 4 | U13: 8 | V13: 3 | W13: 5 | X13: 27 | Y13: 19 | Z13: 8 | AA13: 0 | AB13: 0 | AC13: 0 | AD13: 0 | AE13: 0 | AF13: 0 | AG13: 0 | AH13: 0 | AI13: 0 | AJ13: 0 | AK13: 0 | AL13: 0 | AM13: 0 | AN13: 0 | AO13: 0 | AP13: 0 | AQ13: 0 | AR13: 0 | AS13: 0 | AT13: 0 | AU13: 0 | AV13: 0 | AW13: 0 | AX13: 0
B14: 9 | C14: 72 | D14: 54 | E14: 18 | F14: 0 | G14: 0 | H14: 0 | I14: 1 | J14: 0 | K14: 1 | L14: 3 | M14: 1 | N14: 2 | O14: 2 | P14: 2 | Q14: 0 | R14: 21 | S14: 17 | T14: 4 | U14: 5 | V14: 2 | W14: 3 | X14: 39 | Y14: 31 | Z14: 8 | AA14: 0 | AB14: 0 | AC14: 0 | AD14: 0 | AE14: 0 | AF14: 0 | AG14: 0 | AH14: 0 | AI14: 0 | AJ14: 0 | AK14: 0 | AL14: 0 | AM14: 0 | AN14: 0 | AO14: 0 | AP14: 0 | AQ14: 0 | AR14: 0 | AS14: 1 | AT14: 1 | AU14: 0 | AV14: 0 | AW14: 0 | AX14: 0
B15: 10 | C15: 56 | D15: 42 | E15: 14 | F15: 0 | G15: 0 | H15: 0 | I15: 0 | J15: 0 | K15: 0 | L15: 3 | M15: 1 | N15: 2 | O15: 0 | P15: 0 | Q15: 0 | R15: 22 | S15: 17 | T15: 5 | U15: 4 | V15: 2 | W15: 2 | X15: 27 | Y15: 22 | Z15: 5 | AA15: 0 | AB15: 0 | AC15: 0 | AD15: 0 | AE15: 0 | AF15: 0 | AG15: 0 | AH15: 0 | AI15: 0 | AJ15: 0 | AK15: 0 | AL15: 0 | AM15: 0 | AN15: 0 | AO15: 0 | AP15: 0 | AQ15: 0 | AR15: 0 | AS15: 0 | AT15: 0 | AU15: 0 | AV15: 0 | AW15: 0 | AX15: 0
B16: 11 | C16: 69 | D16: 49 | E16: 20 | F16: 0 | G16: 0 | H16: 0 | I16: 0 | J16: 0 | K16: 0 | L16: 4 | M16: 1 | N16: 3 | O16: 1 | P16: 1 | Q16: 0 | R16: 27 | S16: 16 | T16: 11 | U16: 11 | V16: 8 | W16: 3 | X16: 26 | Y16: 23 | Z16: 3 | AA16: 0 | AB16: 0 | AC16: 0 | AD16: 0 | AE16: 0 | AF16: 0 | AG16: 0 | AH16: 0 | AI16: 0 | AJ16: 0 | AK16: 0 | AL16: 0 | AM16: 0 | AN16: 0 | AO16: 0 | AP16: 0 | AQ16: 0 | AR16: 0 | AS16: 0 | AT16: 0 | AU16: 0 | AV16: 0 | AW16: 0 | AX16: 0
B17: 12 | C17: 56 | D17: 37 | E17: 19 | F17: 0 | G17: 0 | H17: 0 | I17: 1 | J17: 0 | K17: 1 | L17: 2 | M17: 0 | N17: 2 | O17: 0 | P17: 0 | Q17: 0 | R17: 28 | S17: 18 | T17: 10 | U17: 7 | V17: 5 | W17: 2 | X17: 16 | Y17: 12 | Z17: 4 | AA17: 0 | AB17: 0 | AC17: 0 | AD17: 0 | AE17: 0 | AF17: 0 | AG17: 1 | AH17: 1 | AI17: 0 | AJ17: 0 | AK17: 0 | AL17: 0 | AM17: 1 | AN17: 1 | AO17: 0 | AP17: 0 | AQ17: 0 | AR17: 0 | AS17: 0 | AT17: 0 | AU17: 0 | AV17: 0 | AW17: 0 | AX17: 0
B18: 13 | C18: 62 | D18: 37 | E18: 25 | F18: 1 | G18: 0 | H18: 1 | I18: 1 | J18: 1 | K18: 0 | L18: 1 | M18: 0 | N18: 1 | O18: 0 | P18: 0 | Q18: 0 | R18: 24 | S18: 13 | T18: 11 | U18: 11 | V18: 3 | W18: 8 | X18: 23 | Y18: 19 | Z18: 4 | AA18: 0 | AB18: 0 | AC18: 0 | AD18: 0 | AE18: 0 | AF18: 0 | AG18: 0 | AH18: 0 | AI18: 0 | AJ18: 0 | AK18: 0 | AL18: 0 | AM18: 0 | AN18: 0 | AO18: 0 | AP18: 0 | AQ18: 0 | AR18: 0 | AS18: 0 | AT18: 0 | AU18: 0 | AV18: 1 | AW18: 1 | AX18: 0
B19: 14 | C19: 72 | D19: 48 | E19: 24 | F19: 2 | G19: 1 | H19: 1 | I19: 3 | J19: 1 | K19: 2 | L19: 3 | M19: 1 | N19: 2 | O19: 0 | P19: 0 | Q19: 0 | R19: 33 | S19: 21 | T19: 12 | U19: 6 | V19: 3 | W19: 3 | X19: 25 | Y19: 21 | Z19: 4 | AA19: 0 | AB19: 0 | AC19: 0 | AD19: 0 | AE19: 0 | AF19: 0 | AG19: 0 | AH19: 0 | AI19: 0 | AJ19: 0 | AK19: 0 | AL19: 0 | AM19: 0 | AN19: 0 | AO19: 0 | AP19: 0 | AQ19: 0 | AR19: 0 | AS19: 0 | AT19: 0 | AU19: 0 | AV19: 0 | AW19: 0 | AX19: 0
B20: 15 | C20: 67 | D20: 50 | E20: 17 | F20: 2 | G20: 2 | H20: 0 | I20: 0 | J20: 0 | K20: 0 | L20: 0 | M20: 0 | N20: 0 | O20: 2 | P20: 2 | Q20: 0 | R20: 26 | S20: 17 | T20: 9 | U20: 8 | V20: 6 | W20: 2 | X20: 29 | Y20: 23 | Z20: 6 | AA20: 0 | AB20: 0 | AC20: 0 | AD20: 0 | AE20: 0 | AF20: 0 | AG20: 0 | AH20: 0 | AI20: 0 | AJ20: 0 | AK20: 0 | AL20: 0 | AM20: 0 | AN20: 0 | AO20: 0 | AP20: 0 | AQ20: 0 | AR20: 0 | AS20: 0 | AT20: 0 | AU20: 0 | AV20: 0 | AW20: 0 | AX20: 0
B21: 16 | C21: 55 | D21: 33 | E21: 22 | F21: 3 | G21: 2 | H21: 1 | I21: 3 | J21: 1 | K21: 2 | L21: 1 | M21: 1 | N21: 0 | O21: 0 | P21: 0 | Q21: 0 | R21: 24 | S21: 11 | T21: 13 | U21: 3 | V21: 2 | W21: 1 | X21: 18 | Y21: 14 | Z21: 4 | AA21: 0 | AB21: 0 | AC21: 0 | AD21: 0 | AE21: 0 | AF21: 0 | AG21: 1 | AH21: 1 | AI21: 0 | AJ21: 0 | AK21: 0 | AL21: 0 | AM21: 1 | AN21: 1 | AO21: 0 | AP21: 0 | AQ21: 0 | AR21: 0 | AS21: 1 | AT21: 0 | AU21: 1 | AV21: 0 | AW21: 0 | AX21: 0
B22: 17 | C22: 62 | D22: 46 | E22: 16 | F22: 2 | G22: 2 | H22: 0 | I22: 2 | J22: 0 | K22: 2 | L22: 1 | M22: 0 | N22: 1 | O22: 0 | P22: 0 | Q22: 0 | R22: 38 | S22: 31 | T22: 7 | U22: 6 | V22: 4 | W22: 2 | X22: 13 | Y22: 9 | Z22: 4 | AA22: 0 | AB22: 0 | AC22: 0 | AD22: 0 | AE22: 0 | AF22: 0 | AG22: 0 | AH22: 0 | AI22: 0 | AJ22: 0 | AK22: 0 | AL22: 0 | AM22: 0 | AN22: 0 | AO22: 0 | AP22: 0 | AQ22: 0 | AR22: 0 | AS22: 0 | AT22: 0 | AU22: 0 | AV22: 0 | AW22: 0 | AX22: 0
B23: 18 | C23: 54 | D23: 36 | E23: 18 | F23: 3 | G23: 0 | H23: 3 | I23: 0 | J23: 0 | K23: 0 | L23: 1 | M23: 1 | N23: 0 | O23: 0 | P23: 0 | Q23: 0 | R23: 34 | S23: 23 | T23: 11 | U23: 5 | V23: 2 | W23: 3 | X23: 10 | Y23: 9 | Z23: 1 | AA23: 0 | AB23: 0 | AC23: 0 | AD23: 0 | AE23: 0 | AF23: 0 | AG23: 0 | AH23: 0 | AI23: 0 | AJ23: 0 | AK23: 0 | AL23: 0 | AM23: 1 | AN23: 1 | AO23: 0 | AP23: 0 | AQ23: 0 | AR23: 0 | AS23: 0 | AT23: 0 | AU23: 0 | AV23: 0 | AW23: 0 | AX23: 0
B24: 19 | C24: 45 | D24: 31 | E24: 14 | F24: 4 | G24: 3 | H24: 1 | I24: 2 | J24: 2 | K24: 0 | L24: 0 | M24: 0 | N24: 0 | O24: 0 | P24: 0 | Q24: 0 | R24: 27 | S24: 19 | T24: 8 | U24: 5 | V24: 2 | W24: 3 | X24: 6 | Y24: 5 | Z24: 1 | AA24: 0 | AB24: 0 | AC24: 0 | AD24: 0 | AE24: 0 | AF24: 0 | AG24: 0 | AH24: 0 | AI24: 0 | AJ24: 0 | AK24: 0 | AL24: 0 | AM24: 1 | AN24: 0 | AO24: 1 | AP24: 0 | AQ24: 0 | AR24: 0 | AS24: 0 | AT24: 0 | AU24: 0 | AV24: 0 | AW24: 0 | AX24: 0
B25: 20 | C25: 52 | D25: 30 | E25: 22 | F25: 5 | G25: 0 | H25: 5 | I25: 1 | J25: 1 | K25: 0 | L25: 5 | M25: 2 | N25: 3 | O25: 0 | P25: 0 | Q25: 0 | R25: 32 | S25: 21 | T25: 11 | U25: 1 | V25: 0 | W25: 1 | X25: 6 | Y25: 5 | Z25: 1 | AA25: 0 | AB25: 0 | AC25: 0 | AD25: 1 | AE25: 1 | AF25: 0 | AG25: 1 | AH25: 0 | AI25: 1 | AJ25: 0 | AK25: 0 | AL25: 0 | AM25: 0 | AN25: 0 | AO25: 0 | AP25: 0 | AQ25: 0 | AR25: 0 | AS25: 0 | AT25: 0 | AU25: 0 | AV25: 0 | AW25: 0 | AX25: 0
B26: 21 | C26: 64 | D26: 40 | E26: 24 | F26: 7 | G26: 4 | H26: 3 | I26: 2 | J26: 0 | K26: 2 | L26: 2 | M26: 0 | N26: 2 | O26: 0 | P26: 0 | Q26: 0 | R26: 37 | S26: 22 | T26: 15 | U26: 5 | V26: 4 | W26: 1 | X26: 10 | Y26: 10 | Z26: 0 | AA26: 0 | AB26: 0 | AC26: 0 | AD26: 1 | AE26: 0 | AF26: 1 | AG26: 0 | AH26: 0 | AI26: 0 | AJ26: 0 | AK26: 0 | AL26: 0 | AM26: 0 | AN26: 0 | AO26: 0 | AP26: 0 | AQ26: 0 | AR26: 0 | AS26: 0 | AT26: 0 | AU26: 0 | AV26: 0 | AW26: 0 | AX26: 0
B27: 22 | C27: 81 | D27: 50 | E27: 31 | F27: 6 | G27: 5 | H27: 1 | I27: 1 | J27: 1 | K27: 0 | L27: 5 | M27: 1 | N27: 4 | O27: 2 | P27: 2 | Q27: 0 | R27: 45 | S27: 25 | T27: 20 | U27: 10 | V27: 5 | W27: 5 | X27: 8 | Y27: 8 | Z27: 0 | AA27: 1 | AB27: 1 | AC27: 0 | AD27: 1 | AE27: 1 | AF27: 0 | AG27: 0 | AH27: 0 | AI27: 0 | AJ27: 0 | AK27: 0 | AL27: 0 | AM27: 2 | AN27: 1 | AO27: 1 | AP27: 0 | AQ27: 0 | AR27: 0 | AS27: 0 | AT27: 0 | AU27: 0 | AV27: 0 | AW27: 0 | AX27: 0
B28: 23 | C28: 70 | D28: 42 | E28: 28 | F28: 8 | G28: 3 | H28: 5 | I28: 3 | J28: 3 | K28: 0 | L28: 4 | M28: 0 | N28: 4 | O28: 0 | P28: 0 | Q28: 0 | R28: 36 | S28: 24 | T28: 12 | U28: 6 | V28: 2 | W28: 4 | X28: 7 | Y28: 7 | Z28: 0 | AA28: 1 | AB28: 0 | AC28: 1 | AD28: 0 | AE28: 0 | AF28: 0 | AG28: 3 | AH28: 3 | AI28: 0 | AJ28: 0 | AK28: 0 | AL28: 0 | AM28: 2 | AN28: 0 | AO28: 2 | AP28: 0 | AQ28: 0 | AR28: 0 | AS28: 0 | AT28: 0 | AU28: 0 | AV28: 0 | AW28: 0 | AX28: 0
B29: 24 | C29: 80 | D29: 48 | E29: 32 | F29: 5 | G29: 2 | H29: 3 | I29: 6 | J29: 2 | K29: 4 | L29: 6 | M29: 5 | N29: 1 | O29: 0 | P29: 0 | Q29: 0 | R29: 47 | S29: 29 | T29: 18 | U29: 0 | V29: 0 | W29: 0 | X29: 10 | Y29: 9 | Z29: 1 | AA29: 3 | AB29: 1 | AC29: 2 | AD29: 0 | AE29: 0 | AF29: 0 | AG29: 1 | AH29: 0 | AI29: 1 | AJ29: 0 | AK29: 0 | AL29: 0 | AM29: 2 | AN29: 0 | AO29: 2 | AP29: 0 | AQ29: 0 | AR29: 0 | AS29: 0 | AT29: 0 | AU29: 0 | AV29: 0 | AW29: 0 | AX29: 0
B30: 25 | C30: 94 | D30: 59 | E30: 35 | F30: 13 | G30: 5 | H30: 8 | I30: 5 | J30: 4 | K30: 1 | L30: 3 | M30: 1 | N30: 2 | O30: 0 | P30: 0 | Q30: 0 | R30: 40 | S30: 28 | T30: 12 | U30: 9 | V30: 7 | W30: 2 | X30: 12 | Y30: 9 | Z30: 3 | AA30: 6 | AB30: 3 | AC30: 3 | AD30: 2 | AE30: 1 | AF30: 1 | AG30: 1 | AH30: 0 | AI30: 1 | AJ30: 1 | AK30: 1 | AL30: 0 | AM30: 1 | AN30: 0 | AO30: 1 | AP30: 0 | AQ30: 0 | AR30: 0 | AS30: 0 | AT30: 0 | AU30: 0 | AV30: 1 | AW30: 0 | AX30: 1
B31: 26 | C31: 93 | D31: 66 | E31: 27 | F31: 5 | G31: 2 | H31: 3 | I31: 5 | J31: 3 | K31: 2 | L31: 9 | M31: 7 | N31: 2 | O31: 0 | P31: 0 | Q31: 0 | R31: 41 | S31: 30 | T31: 11 | U31: 9 | V31: 5 | W31: 4 | X31: 17 | Y31: 15 | Z31: 2 | AA31: 2 | AB31: 2 | AC31: 0 | AD31: 0 | AE31: 0 | AF31: 0 | AG31: 2 | AH31: 1 | AI31: 1 | AJ31: 0 | AK31: 0 | AL31: 0 | AM31: 3 | AN31: 1 | AO31: 2 | AP31: 0 | AQ31: 0 | AR31: 0 | AS31: 0 | AT31: 0 | AU31: 0 | AV31: 0 | AW31: 0 | AX31: 0
B32: 27 | C32: 85 | D32: 49 | E32: 36 | F32: 7 | G32: 4 | H32: 3 | I32: 6 | J32: 3 | K32: 3 | L32: 5 | M32: 0 | N32: 5 | O32: 1 | P32: 1 | Q32: 0 | R32: 44 | S32: 26 | T32: 18 | U32: 7 | V32: 4 | W32: 3 | X32: 9 | Y32: 8 | Z32: 1 | AA32: 3 | AB32: 1 | AC32: 2 | AD32: 2 | AE32: 1 | AF32: 1 | AG32: 0 | AH32: 0 | AI32: 0 | AJ32: 0 | AK32: 0 | AL32: 0 | AM32: 0 | AN32: 0 | AO32: 0 | AP32: 0 | AQ32: 0 | AR32: 0 | AS32: 0 | AT32: 0 | AU32: 0 | AV32: 1 | AW32: 1 | AX32: 0
B33: 28 | C33: 104 | D33: 62 | E33: 42 | F33: 15 | G33: 5 | H33: 10 | I33: 14 | J33: 9 | K33: 5 | L33: 6 | M33: 3 | N33: 3 | O33: 3 | P33: 3 | Q33: 0 | R33: 48 | S33: 29 | T33: 19 | U33: 5 | V33: 4 | W33: 1 | X33: 6 | Y33: 6 | Z33: 0 | AA33: 7 | AB33: 3 | AC33: 4 | AD33: 0 | AE33: 0 | AF33: 0 | AG33: 0 | AH33: 0 | AI33: 0 | AJ33: 0 | AK33: 0 | AL33: 0 | AM33: 0 | AN33: 0 | AO33: 0 | AP33: 0 | AQ33: 0 | AR33: 0 | AS33: 0 | AT33: 0 | AU33: 0 | AV33: 0 | AW33: 0 | AX33: 0
B34: 29 | C34: 106 | D34: 62 | E34: 44 | F34: 13 | G34: 3 | H34: 10 | I34: 11 | J34: 7 | K34: 4 | L34: 7 | M34: 4 | N34: 3 | O34: 0 | P34: 0 | Q34: 0 | R34: 50 | S34: 30 | T34: 20 | U34: 6 | V34: 3 | W34: 3 | X34: 13 | Y34: 10 | Z34: 3 | AA34: 6 | AB34: 5 | AC34: 1 | AD34: 0 | AE34: 0 | AF34: 0 | AG34: 0 | AH34: 0 | AI34: 0 | AJ34: 0 | AK34: 0 | AL34: 0 | AM34: 0 | AN34: 0 | AO34: 0 | AP34: 0 | AQ34: 0 | AR34: 0 | AS34: 0 | AT34: 0 | AU34: 0 | AV34: 0 | AW34: 0 | AX34: 0
B35: 30 | C35: 100 | D35: 71 | E35: 29 | F35: 13 | G35: 10 | H35: 3 | I35: 9 | J35: 9 | K35: 0 | L35: 5 | M35: 3 | N35: 2 | O35: 0 | P35: 0 | Q35: 0 | R35: 45 | S35: 32 | T35: 13 | U35: 6 | V35: 3 | W35: 3 | X35: 9 | Y35: 8 | Z35: 1 | AA35: 5 | AB35: 2 | AC35: 3 | AD35: 5 | AE35: 2 | AF35: 3 | AG35: 1 | AH35: 1 | AI35: 0 | AJ35: 0 | AK35: 0 | AL35: 0 | AM35: 0 | AN35: 0 | AO35: 0 | AP35: 0 | AQ35: 0 | AR35: 0 | AS35: 1 | AT35: 1 | AU35: 0 | AV35: 1 | AW35: 0 | AX35: 1
B36: 31 | C36: 104 | D36: 65 | E36: 39 | F36: 10 | G36: 5 | H36: 5 | I36: 7 | J36: 5 | K36: 2 | L36: 5 | M36: 3 | N36: 2 | O36: 0 | P36: 0 | Q36: 0 | R36: 46 | S36: 25 | T36: 21 | U36: 12 | V36: 6 | W36: 6 | X36: 13 | Y36: 13 | Z36: 0 | AA36: 6 | AB36: 5 | AC36: 1 | AD36: 3 | AE36: 2 | AF36: 1 | AG36: 0 | AH36: 0 | AI36: 0 | AJ36: 0 | AK36: 0 | AL36: 0 | AM36: 0 | AN36: 0 | AO36: 0 | AP36: 0 | AQ36: 0 | AR36: 0 | AS36: 0 | AT36: 0 | AU36: 0 | AV36: 2 | AW36: 1 | AX36: 1
B37: 32 | C37: 96 | D37: 57 | E37: 39 | F37: 13 | G37: 7 | H37: 6 | I37: 10 | J37: 6 | K37: 4 | L37: 2 | M37: 1 | N37: 1 | O37: 1 | P37: 0 | Q37: 1 | R37: 52 | S37: 34 | T37: 18 | U37: 7 | V37: 4 | W37: 3 | X37: 5 | Y37: 4 | Z37: 1 | AA37: 3 | AB37: 0 | AC37: 3 | AD37: 3 | AE37: 1 | AF37: 2 | AG37: 0 | AH37: 0 | AI37: 0 | AJ37: 0 | AK37: 0 | AL37: 0 | AM37: 0 | AN37: 0 | AO37: 0 | AP37: 0 | AQ37: 0 | AR37: 0 | AS37: 0 | AT37: 0 | AU37: 0 | AV37: 0 | AW37: 0 | AX37: 0
B38: 33 | C38: 129 | D38: 83 | E38: 46 | F38: 16 | G38: 10 | H38: 6 | I38: 13 | J38: 11 | K38: 2 | L38: 8 | M38: 4 | N38: 4 | O38: 2 | P38: 1 | Q38: 1 | R38: 52 | S38: 32 | T38: 20 | U38: 11 | V38: 7 | W38: 4 | X38: 9 | Y38: 8 | Z38: 1 | AA38: 10 | AB38: 6 | AC38: 4 | AD38: 5 | AE38: 3 | AF38: 2 | AG38: 0 | AH38: 0 | AI38: 0 | AJ38: 0 | AK38: 0 | AL38: 0 | AM38: 0 | AN38: 0 | AO38: 0 | AP38: 1 | AQ38: 1 | AR38: 0 | AS38: 1 | AT38: 0 | AU38: 1 | AV38: 1 | AW38: 0 | AX38: 1
B39: 34 | C39: 116 | D39: 76 | E39: 40 | F39: 21 | G39: 14 | H39: 7 | I39: 9 | J39: 6 | K39: 3 | L39: 8 | M39: 6 | N39: 2 | O39: 0 | P39: 0 | Q39: 0 | R39: 43 | S39: 29 | T39: 14 | U39: 10 | V39: 7 | W39: 3 | X39: 9 | Y39: 8 | Z39: 1 | AA39: 9 | AB39: 5 | AC39: 4 | AD39: 3 | AE39: 1 | AF39: 2 | AG39: 4 | AH39: 0 | AI39: 4 | AJ39: 0 | AK39: 0 | AL39: 0 | AM39: 0 | AN39: 0 | AO39: 0 | AP39: 0 | AQ39: 0 | AR39: 0 | AS39: 0 | AT39: 0 | AU39: 0 | AV39: 0 | AW39: 0 | AX39: 0
B40: 35 | C40: 99 | D40: 66 | E40: 33 | F40: 14 | G40: 9 | H40: 5 | I40: 15 | J40: 11 | K40: 4 | L40: 6 | M40: 2 | N40: 4 | O40: 0 | P40: 0 | Q40: 0 | R40: 32 | S40: 23 | T40: 9 | U40: 4 | V40: 2 | W40: 2 | X40: 10 | Y40: 10 | Z40: 0 | AA40: 11 | AB40: 4 | AC40: 7 | AD40: 5 | AE40: 4 | AF40: 1 | AG40: 0 | AH40: 0 | AI40: 0 | AJ40: 0 | AK40: 0 | AL40: 0 | AM40: 1 | AN40: 0 | AO40: 1 | AP40: 0 | AQ40: 0 | AR40: 0 | AS40: 0 | AT40: 0 | AU40: 0 | AV40: 1 | AW40: 1 | AX40: 0
B41: 36 | C41: 86 | D41: 60 | E41: 26 | F41: 17 | G41: 12 | H41: 5 | I41: 11 | J41: 9 | K41: 2 | L41: 4 | M41: 0 | N41: 4 | O41: 0 | P41: 0 | Q41: 0 | R41: 32 | S41: 24 | T41: 8 | U41: 8 | V41: 7 | W41: 1 | X41: 4 | Y41: 2 | Z41: 2 | AA41: 9 | AB41: 5 | AC41: 4 | AD41: 1 | AE41: 1 | AF41: 0 | AG41: 0 | AH41: 0 | AI41: 0 | AJ41: 0 | AK41: 0 | AL41: 0 | AM41: 0 | AN41: 0 | AO41: 0 | AP41: 0 | AQ41: 0 | AR41: 0 | AS41: 0 | AT41: 0 | AU41: 0 | AV41: 0 | AW41: 0 | AX41: 0
B42: 37 | C42: 114 | D42: 80 | E42: 34 | F42: 30 | G42: 22 | H42: 8 | I42: 11 | J42: 6 | K42: 5 | L42: 4 | M42: 3 | N42: 1 | O42: 1 | P42: 0 | Q42: 1 | R42: 38 | S42: 29 | T42: 9 | U42: 11 | V42: 6 | W42: 5 | X42: 7 | Y42: 7 | Z42: 0 | AA42: 6 | AB42: 3 | AC42: 3 | AD42: 4 | AE42: 3 | AF42: 1 | AG42: 0 | AH42: 0 | AI42: 0 | AJ42: 0 | AK42: 0 | AL42: 0 | AM42: 1 | AN42: 1 | AO42: 0 | AP42: 0 | AQ42: 0 | AR42: 0 | AS42: 0 | AT42: 0 | AU42: 0 | AV42: 1 | AW42: 0 | AX42: 1
B43: 38 | C43: 102 | D43: 62 | E43: 40 | F43: 23 | G43: 13 | H43: 10 | I43: 9 | J43: 6 | K43: 3 | L43: 2 | M43: 1 | N43: 1 | O43: 0 | P43: 0 | Q43: 0 | R43: 30 | S43: 19 | T43: 11 | U43: 10 | V43: 8 | W43: 2 | X43: 8 | Y43: 8 | Z43: 0 | AA43: 9 | AB43: 5 | AC43: 4 | AD43: 6 | AE43: 1 | AF43: 5 | AG43: 2 | AH43: 0 | AI43: 2 | AJ43: 0 | AK43: 0 | AL43: 0 | AM43: 0 | AN43: 0 | AO43: 0 | AP43: 0 | AQ43: 0 | AR43: 0 | AS43: 2 | AT43: 1 | AU43: 1 | AV43: 1 | AW43: 0 | AX43: 1
B44: 39 | C44: 115 | D44: 65 | E44: 50 | F44: 29 | G44: 16 | H44: 13 | I44: 20 | J44: 11 | K44: 9 | L44: 5 | M44: 3 | N44: 2 | O44: 1 | P44: 1 | Q44: 0 | R44: 30 | S44: 16 | T44: 14 | U44: 9 | V44: 8 | W44: 1 | X44: 2 | Y44: 2 | Z44: 0 | AA44: 11 | AB44: 6 | AC44: 5 | AD44: 3 | AE44: 1 | AF44: 2 | AG44: 0 | AH44: 0 | AI44: 0 | AJ44: 1 | AK44: 0 | AL44: 1 | AM44: 1 | AN44: 0 | AO44: 1 | AP44: 1 | AQ44: 1 | AR44: 0 | AS44: 1 | AT44: 0 | AU44: 1 | AV44: 1 | AW44: 0 | AX44: 1
B45: 40 | C45: 107 | D45: 72 | E45: 35 | F45: 33 | G45: 22 | H45: 11 | I45: 16 | J45: 10 | K45: 6 | L45: 2 | M45: 2 | N45: 0 | O45: 1 | P45: 1 | Q45: 0 | R45: 20 | S45: 14 | T45: 6 | U45: 7 | V45: 4 | W45: 3 | X45: 6 | Y45: 5 | Z45: 1 | AA45: 14 | AB45: 9 | AC45: 5 | AD45: 6 | AE45: 3 | AF45: 3 | AG45: 0 | AH45: 0 | AI45: 0 | AJ45: 0 | AK45: 0 | AL45: 0 | AM45: 1 | AN45: 1 | AO45: 0 | AP45: 0 | AQ45: 0 | AR45: 0 | AS45: 0 | AT45: 0 | AU45: 0 | AV45: 1 | AW45: 1 | AX45: 0
A46: 합계 | B46: 41 | C46: 99 | D46: 55 | E46: 44 | F46: 27 | G46: 16 | H46: 11 | I46: 9 | J46: 5 | K46: 4 | L46: 3 | M46: 0 | N46: 3 | O46: 1 | P46: 0 | Q46: 1 | R46: 24 | S46: 16 | T46: 8 | U46: 15 | V46: 9 | W46: 6 | X46: 0 | Y46: 0 | Z46: 0 | AA46: 10 | AB46: 6 | AC46: 4 | AD46: 8 | AE46: 3 | AF46: 5 | AG46: 0 | AH46: 0 | AI46: 0 | AJ46: 0 | AK46: 0 | AL46: 0 | AM46: 0 | AN46: 0 | AO46: 0 | AP46: 0 | AQ46: 0 | AR46: 0 | AS46: 0 | AT46: 0 | AU46: 0 | AV46: 2 | AW46: 0 | AX46: 2
B47: 42 | C47: 126 | D47: 91 | E47: 35 | F47: 41 | G47: 35 | H47: 6 | I47: 17 | J47: 14 | K47: 3 | L47: 3 | M47: 2 | N47: 1 | O47: 0 | P47: 0 | Q47: 0 | R47: 28 | S47: 16 | T47: 12 | U47: 14 | V47: 9 | W47: 5 | X47: 1 | Y47: 0 | Z47: 1 | AA47: 13 | AB47: 10 | AC47: 3 | AD47: 5 | AE47: 1 | AF47: 4 | AG47: 2 | AH47: 2 | AI47: 0 | AJ47: 1 | AK47: 1 | AL47: 0 | AM47: 0 | AN47: 0 | AO47: 0 | AP47: 0 | AQ47: 0 | AR47: 0 | AS47: 1 | AT47: 1 | AU47: 0 | AV47: 0 | AW47: 0 | AX47: 0
B48: 43 | C48: 141 | D48: 92 | E48: 49 | F48: 47 | G48: 38 | H48: 9 | I48: 16 | J48: 13 | K48: 3 | L48: 6 | M48: 2 | N48: 4 | O48: 2 | P48: 1 | Q48: 1 | R48: 31 | S48: 17 | T48: 14 | U48: 11 | V48: 7 | W48: 4 | X48: 1 | Y48: 1 | Z48: 0 | AA48: 16 | AB48: 8 | AC48: 8 | AD48: 9 | AE48: 5 | AF48: 4 | AG48: 0 | AH48: 0 | AI48: 0 | AJ48: 0 | AK48: 0 | AL48: 0 | AM48: 1 | AN48: 0 | AO48: 1 | AP48: 0 | AQ48: 0 | AR48: 0 | AS48: 0 | AT48: 0 | AU48: 0 | AV48: 1 | AW48: 0 | AX48: 1
B49: 44 | C49: 154 | D49: 108 | E49: 46 | F49: 41 | G49: 34 | H49: 7 | I49: 26 | J49: 18 | K49: 8 | L49: 10 | M49: 6 | N49: 4 | O49: 1 | P49: 0 | Q49: 1 | R49: 34 | S49: 26 | T49: 8 | U49: 13 | V49: 8 | W49: 5 | X49: 2 | Y49: 1 | Z49: 1 | AA49: 16 | AB49: 8 | AC49: 8 | AD49: 9 | AE49: 6 | AF49: 3 | AG49: 0 | AH49: 0 | AI49: 0 | AJ49: 0 | AK49: 0 | AL49: 0 | AM49: 0 | AN49: 0 | AO49: 0 | AP49: 0 | AQ49: 0 | AR49: 0 | AS49: 0 | AT49: 0 | AU49: 0 | AV49: 2 | AW49: 1 | AX49: 1
B50: 45 | C50: 144 | D50: 98 | E50: 46 | F50: 55 | G50: 39 | H50: 16 | I50: 13 | J50: 11 | K50: 2 | L50: 11 | M50: 7 | N50: 4 | O50: 0 | P50: 0 | Q50: 0 | R50: 31 | S50: 19 | T50: 12 | U50: 13 | V50: 9 | W50: 4 | X50: 2 | Y50: 2 | Z50: 0 | AA50: 13 | AB50: 8 | AC50: 5 | AD50: 6 | AE50: 3 | AF50: 3 | AG50: 0 | AH50: 0 | AI50: 0 | AJ50: 0 | AK50: 0 | AL50: 0 | AM50: 0 | AN50: 0 | AO50: 0 | AP50: 0 | AQ50: 0 | AR50: 0 | AS50: 0 | AT50: 0 | AU50: 0 | AV50: 0 | AW50: 0 | AX50: 0
B51: 46 | C51: 158 | D51: 101 | E51: 57 | F51: 68 | G51: 54 | H51: 14 | I51: 14 | J51: 6 | K51: 8 | L51: 8 | M51: 3 | N51: 5 | O51: 0 | P51: 0 | Q51: 0 | R51: 20 | S51: 10 | T51: 10 | U51: 15 | V51: 12 | W51: 3 | X51: 0 | Y51: 0 | Z51: 0 | AA51: 18 | AB51: 7 | AC51: 11 | AD51: 10 | AE51: 7 | AF51: 3 | AG51: 0 | AH51: 0 | AI51: 0 | AJ51: 0 | AK51: 0 | AL51: 0 | AM51: 3 | AN51: 2 | AO51: 1 | AP51: 0 | AQ51: 0 | AR51: 0 | AS51: 1 | AT51: 0 | AU51: 1 | AV51: 1 | AW51: 0 | AX51: 1
B52: 47 | C52: 155 | D52: 107 | E52: 48 | F52: 60 | G52: 44 | H52: 16 | I52: 18 | J52: 13 | K52: 5 | L52: 7 | M52: 3 | N52: 4 | O52: 0 | P52: 0 | Q52: 0 | R52: 28 | S52: 18 | T52: 10 | U52: 15 | V52: 10 | W52: 5 | X52: 0 | Y52: 0 | Z52: 0 | AA52: 16 | AB52: 11 | AC52: 5 | AD52: 8 | AE52: 5 | AF52: 3 | AG52: 2 | AH52: 2 | AI52: 0 | AJ52: 0 | AK52: 0 | AL52: 0 | AM52: 1 | AN52: 1 | AO52: 0 | AP52: 0 | AQ52: 0 | AR52: 0 | AS52: 0 | AT52: 0 | AU52: 0 | AV52: 0 | AW52: 0 | AX52: 0
B53: 48 | C53: 158 | D53: 112 | E53: 46 | F53: 50 | G53: 41 | H53: 9 | I53: 18 | J53: 10 | K53: 8 | L53: 4 | M53: 1 | N53: 3 | O53: 3 | P53: 3 | Q53: 0 | R53: 33 | S53: 21 | T53: 12 | U53: 16 | V53: 11 | W53: 5 | X53: 0 | Y53: 0 | Z53: 0 | AA53: 20 | AB53: 14 | AC53: 6 | AD53: 8 | AE53: 7 | AF53: 1 | AG53: 0 | AH53: 0 | AI53: 0 | AJ53: 0 | AK53: 0 | AL53: 0 | AM53: 2 | AN53: 1 | AO53: 1 | AP53: 2 | AQ53: 1 | AR53: 1 | AS53: 0 | AT53: 0 | AU53: 0 | AV53: 2 | AW53: 2 | AX53: 0
B54: 49 | C54: 199 | D54: 147 | E54: 52 | F54: 67 | G54: 55 | H54: 12 | I54: 25 | J54: 15 | K54: 10 | L54: 10 | M54: 4 | N54: 6 | O54: 1 | P54: 0 | Q54: 1 | R54: 38 | S54: 28 | T54: 10 | U54: 17 | V54: 12 | W54: 5 | X54: 1 | Y54: 1 | Z54: 0 | AA54: 25 | AB54: 21 | AC54: 4 | AD54: 7 | AE54: 6 | AF54: 1 | AG54: 0 | AH54: 0 | AI54: 0 | AJ54: 2 | AK54: 2 | AL54: 0 | AM54: 3 | AN54: 1 | AO54: 2 | AP54: 1 | AQ54: 1 | AR54: 0 | AS54: 1 | AT54: 1 | AU54: 0 | AV54: 1 | AW54: 0 | AX54: 1
B55: 50 | C55: 196 | D55: 123 | E55: 73 | F55: 72 | G55: 56 | H55: 16 | I55: 23 | J55: 14 | K55: 9 | L55: 10 | M55: 3 | N55: 7 | O55: 4 | P55: 2 | Q55: 2 | R55: 27 | S55: 16 | T55: 11 | U55: 21 | V55: 9 | W55: 12 | X55: 2 | Y55: 2 | Z55: 0 | AA55: 24 | AB55: 12 | AC55: 12 | AD55: 12 | AE55: 9 | AF55: 3 | AG55: 0 | AH55: 0 | AI55: 0 | AJ55: 0 | AK55: 0 | AL55: 0 | AM55: 0 | AN55: 0 | AO55: 0 | AP55: 0 | AQ55: 0 | AR55: 0 | AS55: 1 | AT55: 0 | AU55: 1 | AV55: 0 | AW55: 0 | AX55: 0
B56: 51 | C56: 220 | D56: 150 | E56: 70 | F56: 82 | G56: 60 | H56: 22 | I56: 26 | J56: 22 | K56: 4 | L56: 8 | M56: 2 | N56: 6 | O56: 3 | P56: 2 | Q56: 1 | R56: 26 | S56: 17 | T56: 9 | U56: 22 | V56: 16 | W56: 6 | X56: 0 | Y56: 0 | Z56: 0 | AA56: 30 | AB56: 19 | AC56: 11 | AD56: 12 | AE56: 6 | AF56: 6 | AG56: 0 | AH56: 0 | AI56: 0 | AJ56: 0 | AK56: 0 | AL56: 0 | AM56: 4 | AN56: 4 | AO56: 0 | AP56: 1 | AQ56: 0 | AR56: 1 | AS56: 1 | AT56: 1 | AU56: 0 | AV56: 5 | AW56: 1 | AX56: 4
B57: 52 | C57: 255 | D57: 178 | E57: 77 | F57: 79 | G57: 62 | H57: 17 | I57: 41 | J57: 26 | K57: 15 | L57: 13 | M57: 6 | N57: 7 | O57: 5 | P57: 4 | Q57: 1 | R57: 30 | S57: 23 | T57: 7 | U57: 29 | V57: 20 | W57: 9 | X57: 0 | Y57: 0 | Z57: 0 | AA57: 39 | AB57: 23 | AC57: 16 | AD57: 11 | AE57: 10 | AF57: 1 | AG57: 2 | AH57: 1 | AI57: 1 | AJ57: 1 | AK57: 1 | AL57: 0 | AM57: 1 | AN57: 1 | AO57: 0 | AP57: 1 | AQ57: 0 | AR57: 1 | AS57: 0 | AT57: 0 | AU57: 0 | AV57: 3 | AW57: 1 | AX57: 2
B58: 53 | C58: 262 | D58: 176 | E58: 86 | F58: 86 | G58: 66 | H58: 20 | I58: 29 | J58: 21 | K58: 8 | L58: 13 | M58: 8 | N58: 5 | O58: 2 | P58: 0 | Q58: 2 | R58: 33 | S58: 21 | T58: 12 | U58: 28 | V58: 20 | W58: 8 | X58: 1 | Y58: 1 | Z58: 0 | AA58: 42 | AB58: 23 | AC58: 19 | AD58: 17 | AE58: 9 | AF58: 8 | AG58: 0 | AH58: 0 | AI58: 0 | AJ58: 0 | AK58: 0 | AL58: 0 | AM58: 4 | AN58: 2 | AO58: 2 | AP58: 1 | AQ58: 0 | AR58: 1 | AS58: 2 | AT58: 2 | AU58: 0 | AV58: 4 | AW58: 3 | AX58: 1
B59: 54 | C59: 327 | D59: 215 | E59: 112 | F59: 120 | G59: 88 | H59: 32 | I59: 36 | J59: 23 | K59: 13 | L59: 17 | M59: 7 | N59: 10 | O59: 3 | P59: 3 | Q59: 0 | R59: 40 | S59: 29 | T59: 11 | U59: 23 | V59: 14 | W59: 9 | X59: 0 | Y59: 0 | Z59: 0 | AA59: 43 | AB59: 22 | AC59: 21 | AD59: 28 | AE59: 20 | AF59: 8 | AG59: 2 | AH59: 1 | AI59: 1 | AJ59: 3 | AK59: 1 | AL59: 2 | AM59: 8 | AN59: 5 | AO59: 3 | AP59: 1 | AQ59: 0 | AR59: 1 | AS59: 2 | AT59: 1 | AU59: 1 | AV59: 1 | AW59: 1 | AX59: 0
B60: 55 | C60: 274 | D60: 176 | E60: 98 | F60: 114 | G60: 80 | H60: 34 | I60: 26 | J60: 18 | K60: 8 | L60: 9 | M60: 5 | N60: 4 | O60: 2 | P60: 2 | Q60: 0 | R60: 24 | S60: 15 | T60: 9 | U60: 26 | V60: 17 | W60: 9 | X60: 0 | Y60: 0 | Z60: 0 | AA60: 39 | AB60: 23 | AC60: 16 | AD60: 23 | AE60: 12 | AF60: 11 | AG60: 0 | AH60: 0 | AI60: 0 | AJ60: 0 | AK60: 0 | AL60: 0 | AM60: 4 | AN60: 3 | AO60: 1 | AP60: 0 | AQ60: 0 | AR60: 0 | AS60: 3 | AT60: 1 | AU60: 2 | AV60: 4 | AW60: 0 | AX60: 4
B61: 56 | C61: 335 | D61: 225 | E61: 110 | F61: 146 | G61: 109 | H61: 37 | I61: 42 | J61: 26 | K61: 16 | L61: 12 | M61: 5 | N61: 7 | O61: 1 | P61: 0 | Q61: 1 | R61: 23 | S61: 16 | T61: 7 | U61: 34 | V61: 22 | W61: 12 | X61: 0 | Y61: 0 | Z61: 0 | AA61: 45 | AB61: 27 | AC61: 18 | AD61: 21 | AE61: 14 | AF61: 7 | AG61: 0 | AH61: 0 | AI61: 0 | AJ61: 1 | AK61: 0 | AL61: 1 | AM61: 5 | AN61: 4 | AO61: 1 | AP61: 0 | AQ61: 0 | AR61: 0 | AS61: 3 | AT61: 1 | AU61: 2 | AV61: 2 | AW61: 1 | AX61: 1
B62: 57 | C62: 314 | D62: 223 | E62: 91 | F62: 130 | G62: 96 | H62: 34 | I62: 42 | J62: 30 | K62: 12 | L62: 18 | M62: 13 | N62: 5 | O62: 3 | P62: 2 | Q62: 1 | R62: 16 | S62: 9 | T62: 7 | U62: 31 | V62: 21 | W62: 10 | X62: 0 | Y62: 0 | Z62: 0 | AA62: 43 | AB62: 32 | AC62: 11 | AD62: 23 | AE62: 14 | AF62: 9 | AG62: 1 | AH62: 1 | AI62: 0 | AJ62: 1 | AK62: 1 | AL62: 0 | AM62: 5 | AN62: 3 | AO62: 2 | AP62: 0 | AQ62: 0 | AR62: 0 | AS62: 1 | AT62: 1 | AU62: 0 | AV62: 0 | AW62: 0 | AX62: 0
B63: 58 | C63: 361 | D63: 246 | E63: 115 | F63: 154 | G63: 111 | H63: 43 | I63: 45 | J63: 28 | K63: 17 | L63: 25 | M63: 15 | N63: 10 | O63: 6 | P63: 3 | Q63: 3 | R63: 15 | S63: 12 | T63: 3 | U63: 29 | V63: 22 | W63: 7 | X63: 0 | Y63: 0 | Z63: 0 | AA63: 49 | AB63: 28 | AC63: 21 | AD63: 25 | AE63: 19 | AF63: 6 | AG63: 1 | AH63: 0 | AI63: 1 | AJ63: 1 | AK63: 0 | AL63: 1 | AM63: 5 | AN63: 5 | AO63: 0 | AP63: 0 | AQ63: 0 | AR63: 0 | AS63: 3 | AT63: 1 | AU63: 2 | AV63: 3 | AW63: 2 | AX63: 1
B64: 59 | C64: 341 | D64: 225 | E64: 116 | F64: 137 | G64: 98 | H64: 39 | I64: 37 | J64: 21 | K64: 16 | L64: 23 | M64: 10 | N64: 13 | O64: 3 | P64: 3 | Q64: 0 | R64: 21 | S64: 17 | T64: 4 | U64: 33 | V64: 21 | W64: 12 | X64: 0 | Y64: 0 | Z64: 0 | AA64: 38 | AB64: 22 | AC64: 16 | AD64: 33 | AE64: 20 | AF64: 13 | AG64: 2 | AH64: 2 | AI64: 0 | AJ64: 2 | AK64: 2 | AL64: 0 | AM64: 6 | AN64: 4 | AO64: 2 | AP64: 1 | AQ64: 1 | AR64: 0 | AS64: 4 | AT64: 3 | AU64: 1 | AV64: 1 | AW64: 1 | AX64: 0
B65: 60 | C65: 339 | D65: 212 | E65: 127 | F65: 148 | G65: 101 | H65: 47 | I65: 44 | J65: 22 | K65: 22 | L65: 37 | M65: 22 | N65: 15 | O65: 4 | P65: 3 | Q65: 1 | R65: 14 | S65: 7 | T65: 7 | U65: 34 | V65: 23 | W65: 11 | X65: 0 | Y65: 0 | Z65: 0 | AA65: 29 | AB65: 15 | AC65: 14 | AD65: 22 | AE65: 13 | AF65: 9 | AG65: 0 | AH65: 0 | AI65: 0 | AJ65: 1 | AK65: 1 | AL65: 0 | AM65: 5 | AN65: 4 | AO65: 1 | AP65: 0 | AQ65: 0 | AR65: 0 | AS65: 1 | AT65: 1 | AU65: 0 | AV65: 0 | AW65: 0 | AX65: 0
B66: 61 | C66: 339 | D66: 240 | E66: 99 | F66: 164 | G66: 119 | H66: 45 | I66: 43 | J66: 32 | K66: 11 | L66: 25 | M66: 15 | N66: 10 | O66: 2 | P66: 1 | Q66: 1 | R66: 15 | S66: 11 | T66: 4 | U66: 32 | V66: 21 | W66: 11 | X66: 0 | Y66: 0 | Z66: 0 | AA66: 26 | AB66: 18 | AC66: 8 | AD66: 22 | AE66: 14 | AF66: 8 | AG66: 1 | AH66: 1 | AI66: 0 | AJ66: 1 | AK66: 0 | AL66: 1 | AM66: 5 | AN66: 5 | AO66: 0 | AP66: 0 | AQ66: 0 | AR66: 0 | AS66: 3 | AT66: 3 | AU66: 0 | AV66: 0 | AW66: 0 | AX66: 0
B67: 62 | C67: 382 | D67: 255 | E67: 127 | F67: 190 | G67: 130 | H67: 60 | I67: 43 | J67: 29 | K67: 14 | L67: 27 | M67: 19 | N67: 8 | O67: 2 | P67: 2 | Q67: 0 | R67: 19 | S67: 14 | T67: 5 | U67: 38 | V67: 27 | W67: 11 | X67: 0 | Y67: 0 | Z67: 0 | AA67: 22 | AB67: 12 | AC67: 10 | AD67: 29 | AE67: 15 | AF67: 14 | AG67: 1 | AH67: 0 | AI67: 1 | AJ67: 1 | AK67: 1 | AL67: 0 | AM67: 6 | AN67: 4 | AO67: 2 | AP67: 1 | AQ67: 0 | AR67: 1 | AS67: 3 | AT67: 2 | AU67: 1 | AV67: 0 | AW67: 0 | AX67: 0
B68: 63 | C68: 402 | D68: 285 | E68: 117 | F68: 178 | G68: 125 | H68: 53 | I68: 52 | J68: 37 | K68: 15 | L68: 35 | M68: 25 | N68: 10 | O68: 5 | P68: 5 | Q68: 0 | R68: 10 | S68: 9 | T68: 1 | U68: 41 | V68: 31 | W68: 10 | X68: 0 | Y68: 0 | Z68: 0 | AA68: 36 | AB68: 22 | AC68: 14 | AD68: 26 | AE68: 18 | AF68: 8 | AG68: 2 | AH68: 1 | AI68: 1 | AJ68: 3 | AK68: 2 | AL68: 1 | AM68: 6 | AN68: 3 | AO68: 3 | AP68: 0 | AQ68: 0 | AR68: 0 | AS68: 4 | AT68: 4 | AU68: 0 | AV68: 4 | AW68: 3 | AX68: 1
B69: 64 | C69: 466 | D69: 314 | E69: 152 | F69: 211 | G69: 151 | H69: 60 | I69: 62 | J69: 37 | K69: 25 | L69: 46 | M69: 25 | N69: 21 | O69: 3 | P69: 3 | Q69: 0 | R69: 21 | S69: 15 | T69: 6 | U69: 48 | V69: 34 | W69: 14 | X69: 0 | Y69: 0 | Z69: 0 | AA69: 37 | AB69: 27 | AC69: 10 | AD69: 19 | AE69: 12 | AF69: 7 | AG69: 2 | AH69: 2 | AI69: 0 | AJ69: 2 | AK69: 0 | AL69: 2 | AM69: 8 | AN69: 4 | AO69: 4 | AP69: 1 | AQ69: 0 | AR69: 1 | AS69: 4 | AT69: 2 | AU69: 2 | AV69: 2 | AW69: 2 | AX69: 0
B70: 65 | C70: 529 | D70: 328 | E70: 201 | F70: 240 | G70: 145 | H70: 95 | I70: 53 | J70: 35 | K70: 18 | L70: 65 | M70: 36 | N70: 29 | O70: 5 | P70: 5 | Q70: 0 | R70: 13 | S70: 9 | T70: 4 | U70: 48 | V70: 32 | W70: 16 | X70: 0 | Y70: 0 | Z70: 0 | AA70: 41 | AB70: 27 | AC70: 14 | AD70: 39 | AE70: 24 | AF70: 15 | AG70: 2 | AH70: 2 | AI70: 0 | AJ70: 4 | AK70: 3 | AL70: 1 | AM70: 8 | AN70: 4 | AO70: 4 | AP70: 0 | AQ70: 0 | AR70: 0 | AS70: 8 | AT70: 3 | AU70: 5 | AV70: 3 | AW70: 3 | AX70: 0
B71: 66 | C71: 527 | D71: 351 | E71: 176 | F71: 252 | G71: 180 | H71: 72 | I71: 55 | J71: 37 | K71: 18 | L71: 46 | M71: 26 | N71: 20 | O71: 7 | P71: 5 | Q71: 2 | R71: 16 | S71: 9 | T71: 7 | U71: 56 | V71: 40 | W71: 16 | X71: 0 | Y71: 0 | Z71: 0 | AA71: 39 | AB71: 21 | AC71: 18 | AD71: 34 | AE71: 20 | AF71: 14 | AG71: 0 | AH71: 0 | AI71: 0 | AJ71: 6 | AK71: 2 | AL71: 4 | AM71: 9 | AN71: 6 | AO71: 3 | AP71: 1 | AQ71: 1 | AR71: 0 | AS71: 6 | AT71: 4 | AU71: 2 | AV71: 0 | AW71: 0 | AX71: 0
B72: 67 | C72: 462 | D72: 289 | E72: 173 | F72: 234 | G72: 144 | H72: 90 | I72: 49 | J72: 34 | K72: 15 | L72: 48 | M72: 28 | N72: 20 | O72: 6 | P72: 3 | Q72: 3 | R72: 8 | S72: 7 | T72: 1 | U72: 57 | V72: 35 | W72: 22 | X72: 0 | Y72: 0 | Z72: 0 | AA72: 26 | AB72: 18 | AC72: 8 | AD72: 25 | AE72: 13 | AF72: 12 | AG72: 0 | AH72: 0 | AI72: 0 | AJ72: 3 | AK72: 2 | AL72: 1 | AM72: 2 | AN72: 1 | AO72: 1 | AP72: 2 | AQ72: 2 | AR72: 0 | AS72: 2 | AT72: 2 | AU72: 0 | AV72: 0 | AW72: 0 | AX72: 0
B73: 68 | C73: 487 | D73: 290 | E73: 197 | F73: 237 | G73: 136 | H73: 101 | I73: 45 | J73: 25 | K73: 20 | L73: 63 | M73: 38 | N73: 25 | O73: 2 | P73: 0 | Q73: 2 | R73: 9 | S73: 6 | T73: 3 | U73: 51 | V73: 35 | W73: 16 | X73: 0 | Y73: 0 | Z73: 0 | AA73: 26 | AB73: 16 | AC73: 10 | AD73: 32 | AE73: 19 | AF73: 13 | AG73: 1 | AH73: 1 | AI73: 0 | AJ73: 11 | AK73: 6 | AL73: 5 | AM73: 4 | AN73: 3 | AO73: 1 | AP73: 2 | AQ73: 2 | AR73: 0 | AS73: 3 | AT73: 2 | AU73: 1 | AV73: 1 | AW73: 1 | AX73: 0
B74: 69 | C74: 486 | D74: 288 | E74: 198 | F74: 243 | G74: 141 | H74: 102 | I74: 41 | J74: 26 | K74: 15 | L74: 65 | M74: 34 | N74: 31 | O74: 4 | P74: 3 | Q74: 1 | R74: 12 | S74: 7 | T74: 5 | U74: 50 | V74: 31 | W74: 19 | X74: 0 | Y74: 0 | Z74: 0 | AA74: 17 | AB74: 13 | AC74: 4 | AD74: 37 | AE74: 21 | AF74: 16 | AG74: 1 | AH74: 1 | AI74: 0 | AJ74: 5 | AK74: 4 | AL74: 1 | AM74: 4 | AN74: 3 | AO74: 1 | AP74: 0 | AQ74: 0 | AR74: 0 | AS74: 6 | AT74: 3 | AU74: 3 | AV74: 1 | AW74: 1 | AX74: 0
B75: 70 | C75: 523 | D75: 305 | E75: 218 | F75: 250 | G75: 136 | H75: 114 | I75: 58 | J75: 37 | K75: 21 | L75: 62 | M75: 35 | N75: 27 | O75: 4 | P75: 3 | Q75: 1 | R75: 4 | S75: 1 | T75: 3 | U75: 58 | V75: 35 | W75: 23 | X75: 0 | Y75: 0 | Z75: 0 | AA75: 27 | AB75: 19 | AC75: 8 | AD75: 34 | AE75: 21 | AF75: 13 | AG75: 3 | AH75: 1 | AI75: 2 | AJ75: 8 | AK75: 6 | AL75: 2 | AM75: 5 | AN75: 5 | AO75: 0 | AP75: 0 | AQ75: 0 | AR75: 0 | AS75: 7 | AT75: 4 | AU75: 3 | AV75: 3 | AW75: 2 | AX75: 1
B76: 71 | C76: 482 | D76: 270 | E76: 212 | F76: 252 | G76: 134 | H76: 118 | I76: 38 | J76: 20 | K76: 18 | L76: 66 | M76: 39 | N76: 27 | O76: 4 | P76: 4 | Q76: 0 | R76: 7 | S76: 5 | T76: 2 | U76: 60 | V76: 34 | W76: 26 | X76: 0 | Y76: 0 | Z76: 0 | AA76: 13 | AB76: 6 | AC76: 7 | AD76: 25 | AE76: 19 | AF76: 6 | AG76: 0 | AH76: 0 | AI76: 0 | AJ76: 4 | AK76: 2 | AL76: 2 | AM76: 6 | AN76: 4 | AO76: 2 | AP76: 0 | AQ76: 0 | AR76: 0 | AS76: 6 | AT76: 3 | AU76: 3 | AV76: 1 | AW76: 0 | AX76: 1
B77: 72 | C77: 462 | D77: 262 | E77: 200 | F77: 227 | G77: 114 | H77: 113 | I77: 58 | J77: 31 | K77: 27 | L77: 67 | M77: 45 | N77: 22 | O77: 1 | P77: 1 | Q77: 0 | R77: 1 | S77: 0 | T77: 1 | U77: 50 | V77: 38 | W77: 12 | X77: 0 | Y77: 0 | Z77: 0 | AA77: 21 | AB77: 11 | AC77: 10 | AD77: 26 | AE77: 17 | AF77: 9 | AG77: 0 | AH77: 0 | AI77: 0 | AJ77: 2 | AK77: 2 | AL77: 0 | AM77: 4 | AN77: 1 | AO77: 3 | AP77: 0 | AQ77: 0 | AR77: 0 | AS77: 5 | AT77: 2 | AU77: 3 | AV77: 0 | AW77: 0 | AX77: 0
B78: 73 | C78: 530 | D78: 314 | E78: 216 | F78: 249 | G78: 129 | H78: 120 | I78: 65 | J78: 39 | K78: 26 | L78: 80 | M78: 51 | N78: 29 | O78: 6 | P78: 6 | Q78: 0 | R78: 6 | S78: 5 | T78: 1 | U78: 59 | V78: 43 | W78: 16 | X78: 0 | Y78: 0 | Z78: 0 | AA78: 14 | AB78: 10 | AC78: 4 | AD78: 34 | AE78: 19 | AF78: 15 | AG78: 0 | AH78: 0 | AI78: 0 | AJ78: 3 | AK78: 2 | AL78: 1 | AM78: 6 | AN78: 5 | AO78: 1 | AP78: 1 | AQ78: 0 | AR78: 1 | AS78: 7 | AT78: 5 | AU78: 2 | AV78: 0 | AW78: 0 | AX78: 0
B79: 74 | C79: 418 | D79: 213 | E79: 205 | F79: 206 | G79: 86 | H79: 120 | I79: 33 | J79: 18 | K79: 15 | L79: 76 | M79: 48 | N79: 28 | O79: 5 | P79: 5 | Q79: 0 | R79: 5 | S79: 3 | T79: 2 | U79: 48 | V79: 25 | W79: 23 | X79: 0 | Y79: 0 | Z79: 0 | AA79: 12 | AB79: 4 | AC79: 8 | AD79: 21 | AE79: 15 | AF79: 6 | AG79: 0 | AH79: 0 | AI79: 0 | AJ79: 2 | AK79: 2 | AL79: 0 | AM79: 5 | AN79: 4 | AO79: 1 | AP79: 1 | AQ79: 1 | AR79: 0 | AS79: 4 | AT79: 2 | AU79: 2 | AV79: 0 | AW79: 0 | AX79: 0
B80: 75 | C80: 485 | D80: 259 | E80: 226 | F80: 237 | G80: 114 | H80: 123 | I80: 50 | J80: 22 | K80: 28 | L80: 92 | M80: 59 | N80: 33 | O80: 1 | P80: 1 | Q80: 0 | R80: 6 | S80: 6 | T80: 0 | U80: 54 | V80: 30 | W80: 24 | X80: 0 | Y80: 0 | Z80: 0 | AA80: 15 | AB80: 11 | AC80: 4 | AD80: 24 | AE80: 11 | AF80: 13 | AG80: 0 | AH80: 0 | AI80: 0 | AJ80: 2 | AK80: 2 | AL80: 0 | AM80: 1 | AN80: 1 | AO80: 0 | AP80: 0 | AQ80: 0 | AR80: 0 | AS80: 3 | AT80: 2 | AU80: 1 | AV80: 0 | AW80: 0 | AX80: 0
B81: 76 | C81: 525 | D81: 265 | E81: 260 | F81: 227 | G81: 89 | H81: 138 | I81: 70 | J81: 38 | K81: 32 | L81: 101 | M81: 61 | N81: 40 | O81: 4 | P81: 2 | Q81: 2 | R81: 4 | S81: 3 | T81: 1 | U81: 62 | V81: 35 | W81: 27 | X81: 0 | Y81: 0 | Z81: 0 | AA81: 7 | AB81: 6 | AC81: 1 | AD81: 30 | AE81: 17 | AF81: 13 | AG81: 0 | AH81: 0 | AI81: 0 | AJ81: 10 | AK81: 8 | AL81: 2 | AM81: 4 | AN81: 4 | AO81: 0 | AP81: 0 | AQ81: 0 | AR81: 0 | AS81: 4 | AT81: 2 | AU81: 2 | AV81: 2 | AW81: 0 | AX81: 2
B82: 77 | C82: 527 | D82: 271 | E82: 256 | F82: 249 | G82: 112 | H82: 137 | I82: 67 | J82: 35 | K82: 32 | L82: 119 | M82: 73 | N82: 46 | O82: 7 | P82: 6 | Q82: 1 | R82: 0 | S82: 0 | T82: 0 | U82: 45 | V82: 24 | W82: 21 | X82: 0 | Y82: 0 | Z82: 0 | AA82: 6 | AB82: 3 | AC82: 3 | AD82: 19 | AE82: 10 | AF82: 9 | AG82: 0 | AH82: 0 | AI82: 0 | AJ82: 3 | AK82: 2 | AL82: 1 | AM82: 6 | AN82: 2 | AO82: 4 | AP82: 0 | AQ82: 0 | AR82: 0 | AS82: 6 | AT82: 4 | AU82: 2 | AV82: 0 | AW82: 0 | AX82: 0
B83: 78 | C83: 571 | D83: 306 | E83: 265 | F83: 264 | G83: 128 | H83: 136 | I83: 75 | J83: 40 | K83: 35 | L83: 134 | M83: 87 | N83: 47 | O83: 2 | P83: 1 | Q83: 1 | R83: 2 | S83: 0 | T83: 2 | U83: 51 | V83: 25 | W83: 26 | X83: 0 | Y83: 0 | Z83: 0 | AA83: 7 | AB83: 1 | AC83: 6 | AD83: 20 | AE83: 15 | AF83: 5 | AG83: 1 | AH83: 0 | AI83: 1 | AJ83: 5 | AK83: 3 | AL83: 2 | AM83: 1 | AN83: 0 | AO83: 1 | AP83: 0 | AQ83: 0 | AR83: 0 | AS83: 9 | AT83: 6 | AU83: 3 | AV83: 0 | AW83: 0 | AX83: 0
B84: 79 | C84: 471 | D84: 234 | E84: 237 | F84: 229 | G84: 91 | H84: 138 | I84: 64 | J84: 27 | K84: 37 | L84: 98 | M84: 67 | N84: 31 | O84: 3 | P84: 2 | Q84: 1 | R84: 1 | S84: 1 | T84: 0 | U84: 49 | V84: 29 | W84: 20 | X84: 0 | Y84: 0 | Z84: 0 | AA84: 3 | AB84: 2 | AC84: 1 | AD84: 15 | AE84: 10 | AF84: 5 | AG84: 0 | AH84: 0 | AI84: 0 | AJ84: 3 | AK84: 3 | AL84: 0 | AM84: 1 | AN84: 0 | AO84: 1 | AP84: 0 | AQ84: 0 | AR84: 0 | AS84: 5 | AT84: 2 | AU84: 3 | AV84: 0 | AW84: 0 | AX84: 0
B85: 80 | C85: 451 | D85: 224 | E85: 227 | F85: 205 | G85: 86 | H85: 119 | I85: 53 | J85: 32 | K85: 21 | L85: 115 | M85: 70 | N85: 45 | O85: 4 | P85: 2 | Q85: 2 | R85: 1 | S85: 0 | T85: 1 | U85: 42 | V85: 13 | W85: 29 | X85: 0 | Y85: 0 | Z85: 0 | AA85: 4 | AB85: 4 | AC85: 0 | AD85: 11 | AE85: 5 | AF85: 6 | AG85: 0 | AH85: 0 | AI85: 0 | AJ85: 6 | AK85: 4 | AL85: 2 | AM85: 1 | AN85: 1 | AO85: 0 | AP85: 1 | AQ85: 1 | AR85: 0 | AS85: 8 | AT85: 6 | AU85: 2 | AV85: 0 | AW85: 0 | AX85: 0
B86: 81 | C86: 458 | D86: 224 | E86: 234 | F86: 203 | G86: 75 | H86: 128 | I86: 49 | J86: 26 | K86: 23 | L86: 128 | M86: 73 | N86: 55 | O86: 4 | P86: 4 | Q86: 0 | R86: 1 | S86: 1 | T86: 0 | U86: 48 | V86: 28 | W86: 20 | X86: 0 | Y86: 0 | Z86: 0 | AA86: 3 | AB86: 3 | AC86: 0 | AD86: 10 | AE86: 6 | AF86: 4 | AG86: 1 | AH86: 0 | AI86: 1 | AJ86: 3 | AK86: 3 | AL86: 0 | AM86: 1 | AN86: 0 | AO86: 1 | AP86: 1 | AQ86: 1 | AR86: 0 | AS86: 5 | AT86: 4 | AU86: 1 | AV86: 1 | AW86: 0 | AX86: 1
B87: 82 | C87: 467 | D87: 216 | E87: 251 | F87: 193 | G87: 57 | H87: 136 | I87: 60 | J87: 36 | K87: 24 | L87: 154 | M87: 88 | N87: 66 | O87: 3 | P87: 2 | Q87: 1 | R87: 0 | S87: 0 | T87: 0 | U87: 32 | V87: 17 | W87: 15 | X87: 0 | Y87: 0 | Z87: 0 | AA87: 3 | AB87: 3 | AC87: 0 | AD87: 14 | AE87: 10 | AF87: 4 | AG87: 0 | AH87: 0 | AI87: 0 | AJ87: 3 | AK87: 2 | AL87: 1 | AM87: 1 | AN87: 0 | AO87: 1 | AP87: 1 | AQ87: 0 | AR87: 1 | AS87: 3 | AT87: 1 | AU87: 2 | AV87: 0 | AW87: 0 | AX87: 0
B88: 83 | C88: 567 | D88: 259 | E88: 308 | F88: 238 | G88: 80 | H88: 158 | I88: 61 | J88: 27 | K88: 34 | L88: 172 | M88: 101 | N88: 71 | O88: 1 | P88: 0 | Q88: 1 | R88: 2 | S88: 2 | T88: 0 | U88: 55 | V88: 30 | W88: 25 | X88: 0 | Y88: 0 | Z88: 0 | AA88: 1 | AB88: 0 | AC88: 1 | AD88: 19 | AE88: 7 | AF88: 12 | AG88: 0 | AH88: 0 | AI88: 0 | AJ88: 1 | AK88: 1 | AL88: 0 | AM88: 3 | AN88: 0 | AO88: 3 | AP88: 0 | AQ88: 0 | AR88: 0 | AS88: 13 | AT88: 10 | AU88: 3 | AV88: 1 | AW88: 1 | AX88: 0
B89: 84 | C89: 415 | D89: 185 | E89: 230 | F89: 177 | G89: 62 | H89: 115 | I89: 47 | J89: 20 | K89: 27 | L89: 126 | M89: 69 | N89: 57 | O89: 1 | P89: 1 | Q89: 0 | R89: 1 | S89: 1 | T89: 0 | U89: 33 | V89: 12 | W89: 21 | X89: 0 | Y89: 0 | Z89: 0 | AA89: 2 | AB89: 1 | AC89: 1 | AD89: 19 | AE89: 13 | AF89: 6 | AG89: 0 | AH89: 0 | AI89: 0 | AJ89: 0 | AK89: 0 | AL89: 0 | AM89: 0 | AN89: 0 | AO89: 0 | AP89: 0 | AQ89: 0 | AR89: 0 | AS89: 9 | AT89: 6 | AU89: 3 | AV89: 0 | AW89: 0 | AX89: 0
A90: 합계 | B90: 85 | C90: 353 | D90: 164 | E90: 189 | F90: 143 | G90: 55 | H90: 88 | I90: 44 | J90: 21 | K90: 23 | L90: 120 | M90: 66 | N90: 54 | O90: 1 | P90: 1 | Q90: 0 | R90: 0 | S90: 0 | T90: 0 | U90: 28 | V90: 12 | W90: 16 | X90: 0 | Y90: 0 | Z90: 0 | AA90: 1 | AB90: 0 | AC90: 1 | AD90: 11 | AE90: 6 | AF90: 5 | AG90: 0 | AH90: 0 | AI90: 0 | AJ90: 0 | AK90: 0 | AL90: 0 | AM90: 1 | AN90: 1 | AO90: 0 | AP90: 1 | AQ90: 0 | AR90: 1 | AS90: 3 | AT90: 2 | AU90: 1 | AV90: 0 | AW90: 0 | AX90: 0
B91: 86 | C91: 394 | D91: 171 | E91: 223 | F91: 142 | G91: 42 | H91: 100 | I91: 50 | J91: 28 | K91: 22 | L91: 147 | M91: 79 | N91: 68 | O91: 2 | P91: 1 | Q91: 1 | R91: 0 | S91: 0 | T91: 0 | U91: 33 | V91: 11 | W91: 22 | X91: 0 | Y91: 0 | Z91: 0 | AA91: 1 | AB91: 0 | AC91: 1 | AD91: 13 | AE91: 5 | AF91: 8 | AG91: 0 | AH91: 0 | AI91: 0 | AJ91: 1 | AK91: 1 | AL91: 0 | AM91: 0 | AN91: 0 | AO91: 0 | AP91: 0 | AQ91: 0 | AR91: 0 | AS91: 5 | AT91: 4 | AU91: 1 | AV91: 0 | AW91: 0 | AX91: 0
B92: 87 | C92: 312 | D92: 124 | E92: 188 | F92: 107 | G92: 30 | H92: 77 | I92: 31 | J92: 13 | K92: 18 | L92: 126 | M92: 58 | N92: 68 | O92: 0 | P92: 0 | Q92: 0 | R92: 2 | S92: 1 | T92: 1 | U92: 29 | V92: 10 | W92: 19 | X92: 0 | Y92: 0 | Z92: 0 | AA92: 0 | AB92: 0 | AC92: 0 | AD92: 10 | AE92: 6 | AF92: 4 | AG92: 0 | AH92: 0 | AI92: 0 | AJ92: 2 | AK92: 2 | AL92: 0 | AM92: 0 | AN92: 0 | AO92: 0 | AP92: 0 | AQ92: 0 | AR92: 0 | AS92: 5 | AT92: 4 | AU92: 1 | AV92: 0 | AW92: 0 | AX92: 0
B93: 88 | C93: 268 | D93: 99 | E93: 169 | F93: 111 | G93: 28 | H93: 83 | I93: 20 | J93: 12 | K93: 8 | L93: 101 | M93: 44 | N93: 57 | O93: 1 | P93: 1 | Q93: 0 | R93: 1 | S93: 1 | T93: 0 | U93: 24 | V93: 9 | W93: 15 | X93: 0 | Y93: 0 | Z93: 0 | AA93: 0 | AB93: 0 | AC93: 0 | AD93: 6 | AE93: 2 | AF93: 4 | AG93: 1 | AH93: 1 | AI93: 0 | AJ93: 0 | AK93: 0 | AL93: 0 | AM93: 0 | AN93: 0 | AO93: 0 | AP93: 0 | AQ93: 0 | AR93: 0 | AS93: 3 | AT93: 1 | AU93: 2 | AV93: 0 | AW93: 0 | AX93: 0
B94: 89 | C94: 246 | D94: 99 | E94: 147 | F94: 75 | G94: 22 | H94: 53 | I94: 22 | J94: 7 | K94: 15 | L94: 112 | M94: 52 | N94: 60 | O94: 1 | P94: 0 | Q94: 1 | R94: 0 | S94: 0 | T94: 0 | U94: 25 | V94: 11 | W94: 14 | X94: 0 | Y94: 0 | Z94: 0 | AA94: 1 | AB94: 1 | AC94: 0 | AD94: 7 | AE94: 4 | AF94: 3 | AG94: 0 | AH94: 0 | AI94: 0 | AJ94: 1 | AK94: 1 | AL94: 0 | AM94: 0 | AN94: 0 | AO94: 0 | AP94: 0 | AQ94: 0 | AR94: 0 | AS94: 2 | AT94: 1 | AU94: 1 | AV94: 0 | AW94: 0 | AX94: 0
B95: 90 | C95: 177 | D95: 66 | E95: 111 | F95: 67 | G95: 15 | H95: 52 | I95: 16 | J95: 5 | K95: 11 | L95: 69 | M95: 34 | N95: 35 | O95: 0 | P95: 0 | Q95: 0 | R95: 1 | S95: 0 | T95: 1 | U95: 15 | V95: 5 | W95: 10 | X95: 0 | Y95: 0 | Z95: 0 | AA95: 0 | AB95: 0 | AC95: 0 | AD95: 5 | AE95: 4 | AF95: 1 | AG95: 0 | AH95: 0 | AI95: 0 | AJ95: 0 | AK95: 0 | AL95: 0 | AM95: 0 | AN95: 0 | AO95: 0 | AP95: 0 | AQ95: 0 | AR95: 0 | AS95: 4 | AT95: 3 | AU95: 1 | AV95: 0 | AW95: 0 | AX95: 0
B96: 91 | C96: 151 | D96: 58 | E96: 93 | F96: 55 | G96: 10 | H96: 45 | I96: 11 | J96: 4 | K96: 7 | L96: 73 | M96: 38 | N96: 35 | O96: 0 | P96: 0 | Q96: 0 | R96: 0 | S96: 0 | T96: 0 | U96: 8 | V96: 5 | W96: 3 | X96: 0 | Y96: 0 | Z96: 0 | AA96: 1 | AB96: 0 | AC96: 1 | AD96: 2 | AE96: 1 | AF96: 1 | AG96: 0 | AH96: 0 | AI96: 0 | AJ96: 0 | AK96: 0 | AL96: 0 | AM96: 0 | AN96: 0 | AO96: 0 | AP96: 0 | AQ96: 0 | AR96: 0 | AS96: 1 | AT96: 0 | AU96: 1 | AV96: 0 | AW96: 0 | AX96: 0
B97: 92 | C97: 106 | D97: 37 | E97: 69 | F97: 26 | G97: 5 | H97: 21 | I97: 13 | J97: 5 | K97: 8 | L97: 57 | M97: 25 | N97: 32 | O97: 2 | P97: 1 | Q97: 1 | R97: 0 | S97: 0 | T97: 0 | U97: 8 | V97: 1 | W97: 7 | X97: 0 | Y97: 0 | Z97: 0 | AA97: 0 | AB97: 0 | AC97: 0 | AD97: 0 | AE97: 0 | AF97: 0 | AG97: 0 | AH97: 0 | AI97: 0 | AJ97: 0 | AK97: 0 | AL97: 0 | AM97: 0 | AN97: 0 | AO97: 0 | AP97: 0 | AQ97: 0 | AR97: 0 | AS97: 0 | AT97: 0 | AU97: 0 | AV97: 0 | AW97: 0 | AX97: 0
B98: 93 | C98: 61 | D98: 19 | E98: 42 | F98: 15 | G98: 2 | H98: 13 | I98: 1 | J98: 0 | K98: 1 | L98: 36 | M98: 15 | N98: 21 | O98: 1 | P98: 0 | Q98: 1 | R98: 0 | S98: 0 | T98: 0 | U98: 5 | V98: 1 | W98: 4 | X98: 0 | Y98: 0 | Z98: 0 | AA98: 0 | AB98: 0 | AC98: 0 | AD98: 3 | AE98: 1 | AF98: 2 | AG98: 0 | AH98: 0 | AI98: 0 | AJ98: 0 | AK98: 0 | AL98: 0 | AM98: 0 | AN98: 0 | AO98: 0 | AP98: 0 | AQ98: 0 | AR98: 0 | AS98: 0 | AT98: 0 | AU98: 0 | AV98: 0 | AW98: 0 | AX98: 0
B99: 94 | C99: 57 | D99: 16 | E99: 41 | F99: 14 | G99: 3 | H99: 11 | I99: 9 | J99: 2 | K99: 7 | L99: 28 | M99: 8 | N99: 20 | O99: 0 | P99: 0 | Q99: 0 | R99: 0 | S99: 0 | T99: 0 | U99: 3 | V99: 1 | W99: 2 | X99: 0 | Y99: 0 | Z99: 0 | AA99: 0 | AB99: 0 | AC99: 0 | AD99: 1 | AE99: 0 | AF99: 1 | AG99: 0 | AH99: 0 | AI99: 0 | AJ99: 0 | AK99: 0 | AL99: 0 | AM99: 0 | AN99: 0 | AO99: 0 | AP99: 0 | AQ99: 0 | AR99: 0 | AS99: 2 | AT99: 2 | AU99: 0 | AV99: 0 | AW99: 0 | AX99: 0
B100: 95 | C100: 43 | D100: 9 | E100: 34 | F100: 13 | G100: 0 | H100: 13 | I100: 5 | J100: 3 | K100: 2 | L100: 25 | M100: 6 | N100: 19 | O100: 0 | P100: 0 | Q100: 0 | R100: 0 | S100: 0 | T100: 0 | U100: 0 | V100: 0 | W100: 0 | X100: 0 | Y100: 0 | Z100: 0 | AA100: 0 | AB100: 0 | AC100: 0 | AD100: 0 | AE100: 0 | AF100: 0 | AG100: 0 | AH100: 0 | AI100: 0 | AJ100: 0 | AK100: 0 | AL100: 0 | AM100: 0 | AN100: 0 | AO100: 0 | AP100: 0 | AQ100: 0 | AR100: 0 | AS100: 0 | AT100: 0 | AU100: 0 | AV100: 0 | AW100: 0 | AX100: 0
B101: 96 | C101: 31 | D101: 16 | E101: 15 | F101: 11 | G101: 4 | H101: 7 | I101: 3 | J101: 1 | K101: 2 | L101: 13 | M101: 7 | N101: 6 | O101: 0 | P101: 0 | Q101: 0 | R101: 0 | S101: 0 | T101: 0 | U101: 1 | V101: 1 | W101: 0 | X101: 0 | Y101: 0 | Z101: 0 | AA101: 0 | AB101: 0 | AC101: 0 | AD101: 1 | AE101: 1 | AF101: 0 | AG101: 0 | AH101: 0 | AI101: 0 | AJ101: 1 | AK101: 1 | AL101: 0 | AM101: 0 | AN101: 0 | AO101: 0 | AP101: 0 | AQ101: 0 | AR101: 0 | AS101: 1 | AT101: 1 | AU101: 0 | AV101: 0 | AW101: 0 | AX101: 0
B102: 97 | C102: 17 | D102: 7 | E102: 10 | F102: 3 | G102: 0 | H102: 3 | I102: 1 | J102: 0 | K102: 1 | L102: 11 | M102: 6 | N102: 5 | O102: 0 | P102: 0 | Q102: 0 | R102: 0 | S102: 0 | T102: 0 | U102: 0 | V102: 0 | W102: 0 | X102: 0 | Y102: 0 | Z102: 0 | AA102: 0 | AB102: 0 | AC102: 0 | AD102: 0 | AE102: 0 | AF102: 0 | AG102: 0 | AH102: 0 | AI102: 0 | AJ102: 0 | AK102: 0 | AL102: 0 | AM102: 0 | AN102: 0 | AO102: 0 | AP102: 0 | AQ102: 0 | AR102: 0 | AS102: 2 | AT102: 1 | AU102: 1 | AV102: 0 | AW102: 0 | AX102: 0
B103: 98 | C103: 11 | D103: 4 | E103: 7 | F103: 3 | G103: 1 | H103: 2 | I103: 2 | J103: 1 | K103: 1 | L103: 6 | M103: 2 | N103: 4 | O103: 0 | P103: 0 | Q103: 0 | R103: 0 | S103: 0 | T103: 0 | U103: 0 | V103: 0 | W103: 0 | X103: 0 | Y103: 0 | Z103: 0 | AA103: 0 | AB103: 0 | AC103: 0 | AD103: 0 | AE103: 0 | AF103: 0 | AG103: 0 | AH103: 0 | AI103: 0 | AJ103: 0 | AK103: 0 | AL103: 0 | AM103: 0 | AN103: 0 | AO103: 0 | AP103: 0 | AQ103: 0 | AR103: 0 | AS103: 0 | AT103: 0 | AU103: 0 | AV103: 0 | AW103: 0 | AX103: 0
B104: 99 | C104: 4 | D104: 1 | E104: 3 | F104: 0 | G104: 0 | H104: 0 | I104: 0 | J104: 0 | K104: 0 | L104: 4 | M104: 1 | N104: 3 | O104: 0 | P104: 0 | Q104: 0 | R104: 0 | S104: 0 | T104: 0 | U104: 0 | V104: 0 | W104: 0 | X104: 0 | Y104: 0 | Z104: 0 | AA104: 0 | AB104: 0 | AC104: 0 | AD104: 0 | AE104: 0 | AF104: 0 | AG104: 0 | AH104: 0 | AI104: 0 | AJ104: 0 | AK104: 0 | AL104: 0 | AM104: 0 | AN104: 0 | AO104: 0 | AP104: 0 | AQ104: 0 | AR104: 0 | AS104: 0 | AT104: 0 | AU104: 0 | AV104: 0 | AW104: 0 | AX104: 0
B105: 100 | C105: 5 | D105: 1 | E105: 4 | F105: 1 | G105: 0 | H105: 1 | I105: 0 | J105: 0 | K105: 0 | L105: 3 | M105: 1 | N105: 2 | O105: 0 | P105: 0 | Q105: 0 | R105: 0 | S105: 0 | T105: 0 | U105: 0 | V105: 0 | W105: 0 | X105: 0 | Y105: 0 | Z105: 0 | AA105: 0 | AB105: 0 | AC105: 0 | AD105: 0 | AE105: 0 | AF105: 0 | AG105: 0 | AH105: 0 | AI105: 0 | AJ105: 0 | AK105: 0 | AL105: 0 | AM105: 0 | AN105: 0 | AO105: 0 | AP105: 0 | AQ105: 0 | AR105: 0 | AS105: 1 | AT105: 0 | AU105: 1 | AV105: 0 | AW105: 0 | AX105: 0
B106: 101 | C106: 5 | D106: 0 | E106: 5 | F106: 2 | G106: 0 | H106: 2 | I106: 0 | J106: 0 | K106: 0 | L106: 3 | M106: 0 | N106: 3 | O106: 0 | P106: 0 | Q106: 0 | R106: 0 | S106: 0 | T106: 0 | U106: 0 | V106: 0 | W106: 0 | X106: 0 | Y106: 0 | Z106: 0 | AA106: 0 | AB106: 0 | AC106: 0 | AD106: 0 | AE106: 0 | AF106: 0 | AG106: 0 | AH106: 0 | AI106: 0 | AJ106: 0 | AK106: 0 | AL106: 0 | AM106: 0 | AN106: 0 | AO106: 0 | AP106: 0 | AQ106: 0 | AR106: 0 | AS106: 0 | AT106: 0 | AU106: 0 | AV106: 0 | AW106: 0 | AX106: 0
B107: 102 | C107: 3 | D107: 1 | E107: 2 | F107: 1 | G107: 0 | H107: 1 | I107: 0 | J107: 0 | K107: 0 | L107: 2 | M107: 1 | N107: 1 | O107: 0 | P107: 0 | Q107: 0 | R107: 0 | S107: 0 | T107: 0 | U107: 0 | V107: 0 | W107: 0 | X107: 0 | Y107: 0 | Z107: 0 | AA107: 0 | AB107: 0 | AC107: 0 | AD107: 0 | AE107: 0 | AF107: 0 | AG107: 0 | AH107: 0 | AI107: 0 | AJ107: 0 | AK107: 0 | AL107: 0 | AM107: 0 | AN107: 0 | AO107: 0 | AP107: 0 | AQ107: 0 | AR107: 0 | AS107: 0 | AT107: 0 | AU107: 0 | AV107: 0 | AW107: 0 | AX107: 0
B108: 103 | C108: 2 | D108: 0 | E108: 2 | F108: 0 | G108: 0 | H108: 0 | I108: 0 | J108: 0 | K108: 0 | L108: 2 | M108: 0 | N108: 2 | O108: 0 | P108: 0 | Q108: 0 | R108: 0 | S108: 0 | T108: 0 | U108: 0 | V108: 0 | W108: 0 | X108: 0 | Y108: 0 | Z108: 0 | AA108: 0 | AB108: 0 | AC108: 0 | AD108: 0 | AE108: 0 | AF108: 0 | AG108: 0 | AH108: 0 | AI108: 0 | AJ108: 0 | AK108: 0 | AL108: 0 | AM108: 0 | AN108: 0 | AO108: 0 | AP108: 0 | AQ108: 0 | AR108: 0 | AS108: 0 | AT108: 0 | AU108: 0 | AV108: 0 | AW108: 0 | AX108: 0
B109: 104 | C109: 2 | D109: 2 | E109: 0 | F109: 1 | G109: 1 | H109: 0 | I109: 0 | J109: 0 | K109: 0 | L109: 1 | M109: 1 | N109: 0 | O109: 0 | P109: 0 | Q109: 0 | R109: 0 | S109: 0 | T109: 0 | U109: 0 | V109: 0 | W109: 0 | X109: 0 | Y109: 0 | Z109: 0 | AA109: 0 | AB109: 0 | AC109: 0 | AD109: 0 | AE109: 0 | AF109: 0 | AG109: 0 | AH109: 0 | AI109: 0 | AJ109: 0 | AK109: 0 | AL109: 0 | AM109: 0 | AN109: 0 | AO109: 0 | AP109: 0 | AQ109: 0 | AR109: 0 | AS109: 0 | AT109: 0 | AU109: 0 | AV109: 0 | AW109: 0 | AX109: 0
B110: 106 | C110: 1 | D110: 0 | E110: 1 | F110: 0 | G110: 0 | H110: 0 | I110: 0 | J110: 0 | K110: 0 | L110: 1 | M110: 0 | N110: 1 | O110: 0 | P110: 0 | Q110: 0 | R110: 0 | S110: 0 | T110: 0 | U110: 0 | V110: 0 | W110: 0 | X110: 0 | Y110: 0 | Z110: 0 | AA110: 0 | AB110: 0 | AC110: 0 | AD110: 0 | AE110: 0 | AF110: 0 | AG110: 0 | AH110: 0 | AI110: 0 | AJ110: 0 | AK110: 0 | AL110: 0 | AM110: 0 | AN110: 0 | AO110: 0 | AP110: 0 | AQ110: 0 | AR110: 0 | AS110: 0 | AT110: 0 | AU110: 0 | AV110: 0 | AW110: 0 | AX110: 0

Sheet 홈페이지용
B1: 은평구 장애인 유형별, 정도별 등록 현황
B2: =정도별!B3 -> *2025. 11월말 기준
E3: (단위 : 명)
B4: 장애유형 | C4: 합계 | D4: 심한 장애 | E4: 심하지 않은 장애
B5: 합 계 | C5: 21135 | D5: 8042 | E5: 13093
B6: 지체 | C6: 8191 | D6: 1330 | E6: 6861 | F6: =C6/$C$5 -> 0.3875561864
B7: 시각 | C7: 2267 | D7: 443 | E7: 1091 | F7: =C7/$C$5 -> 0.1072628342
B8: 청각 | C8: 3328 | D8: 605 | E8: 1540 | F8: 0.1574639224
B9: 언어 | C9: 166 | D9: 93 | E9: 53 | F9: 0.007854270168
B10: 지적 | C10: 1895 | D10: 1895 | E10: 0 | F10: 0.0896616986
B11: 뇌병변 | C11: 2054 | D11: 1133 | E11: 580 | F11: 0.09718476461
B12: 자폐성 | C12: 529 | D12: 529 | E12: 0 | F12: 0.0250295718
B13: 정신 | C13: 1102 | D13: 1063 | E13: 20 | F13: 0.05214099834
B14: 신장 | C14: 992 | D14: 769 | E14: 128 | F14: 0.04693636149
B15: 심장 | C15: 45 | D15: 31 | E15: 12 | F15: 0.002129169624
B16: 호흡기 | C16: 111 | D16: 104 | E16: 2 | F16: 0.005251951739
B17: 간 | C17: 174 | D17: 7 | E17: 104 | F17: 0.008232789212
B18: 안면 | C18: 23 | D18: 9 | E18: 7 | F18: 0.001088242252
B19: 장루.요루 | C19: 194 | D19: 18 | E19: 110 | F19: 0.009179086823
B20: 뇌전증 | C20: 64 | D20: 13 | E20: 24 | F20: 0.003028152354

Sheet Sheet1 (hidden)
A1: 구산동 | B1: 2238
A2: 역촌동 | B2: 2143
A3: 진관동 | B3: 1968
A4: 불광1동 | B4: 1720
A5: 녹번동 | B5: 1641
A6: 불광2동 | B6: 1442
A7: 응암3동 | B7: 1327
A8: 응암1동 | B8: 1326
A9: 대조동 | B9: 1230
A10: 신사1동 | B10: 1229
A11: 갈현2동 | B11: 1204
A12: 갈현1동 | B12: 1046
A13: 응암2동 | B13: 987
A14: 신사2동 | B14: 927
A15: 증산동 | B15: 703
A16: 수색동 | B16: 623

Sheet Sheet2 (hidden)
A1: 은평구 동별 장애인현황(유형별) (2024. 3월말)
A2: 동별 | B2: 합계 | E2: 지적 | H2: 자폐 | K2: 발달장애인 | N2: 발달장애인비율
B3: 합계 | C3: 남성 | D3: 여성 | E3: 소계 | F3: 남성 | G3: 여성 | H3: 소계 | I3: 남성 | J3: 여성 | K3: 소계 | L3: 남성 | M3: 여성
A4: 합 계 | B4: =C4+D4 -> 21135 | C4: =SUM(C5:C20) -> 12268 | D4: =SUM(D5:D20) -> 8867 | E4: =F4+G4 -> 1895 | F4: =SUM(F5:F20) -> 1243 | G4: =SUM(G5:G20) -> 652 | H4: =I4+J4 -> 529 | I4: =SUM(I5:I20) -> 436 | J4: =SUM(J5:J20) -> 93 | K4: =L4+M4 -> 2424 | L4: =F4+I4 -> 1679 | M4: =G4+J4 -> 745 | N4: =K4/B4 -> 0.1146912704
A5: 녹번동 | B5: =C5+D5 -> 1627 | C5: =유형별!C5 -> 938 | D5: =유형별!D5 -> 689 | E5: =F5+G5 -> 117 | F5: =유형별!R5 -> 74 | G5: =유형별!S5 -> 43 | H5: =I5+J5 -> 23 | I5: =유형별!X5 -> 17 | J5: =유형별!Y5 -> 6 | K5: =E5+H5 -> 140 | L5: =F5+I5 -> 91 | M5: =G5+J5 -> 49 | N5: 0.086047941
A6: 불광1동 | B6: 1474 | C6: =유형별!C6 -> 820 | D6: =유형별!D6 -> 654 | E6: 109 | F6: =유형별!R6 -> 65 | G6: =유형별!S6 -> 44 | H6: 29 | I6: =유형별!X6 -> 23 | J6: =유형별!Y6 -> 6 | K6: 138 | L6: 88 | M6: 50 | N6: 0.09362279512
A7: 불광2동 | B7: 1449 | C7: =유형별!C7 -> 845 | D7: =유형별!D7 -> 604 | E7: 116 | F7: =유형별!R7 -> 69 | G7: =유형별!S7 -> 47 | H7: 35 | I7: =유형별!X7 -> 34 | J7: =유형별!Y7 -> 1 | K7: 151 | L7: 103 | M7: 48 | N7: 0.1042097999
A8: 갈현1동 | B8: 686 | C8: =유형별!C8 -> 394 | D8: =유형별!D8 -> 292 | E8: 60 | F8: =유형별!R8 -> 40 | G8: =유형별!S8 -> 20 | H8: 18 | I8: =유형별!X8 -> 16 | J8: =유형별!Y8 -> 2 | K8: 78 | L8: 56 | M8: 22 | N8: 0.1137026239 | R8: =2206/21767 -> 0.1013460743
A9: 갈현2동 | B9: 1256 | C9: =유형별!C9 -> 726 | D9: =유형별!D9 -> 530 | E9: 107 | F9: =유형별!R9 -> 68 | G9: =유형별!S9 -> 39 | H9: 24 | I9: =유형별!X9 -> 16 | J9: =유형별!Y9 -> 8 | K9: 131 | L9: 84 | M9: 47 | N9: 0.1042993631
A10: 구산동 | B10: 2108 | C10: =유형별!C10 -> 1452 | D10: =유형별!D10 -> 656 | E10: 398 | F10: =유형별!R10 -> 309 | G10: =유형별!S10 -> 89 | H10: 50 | I10: =유형별!X10 -> 40 | J10: =유형별!Y10 -> 10 | K10: 448 | L10: 349 | M10: 99 | N10: 0.2125237192
A11: 대조동 | B11: 1242 | C11: =유형별!C11 -> 716 | D11: =유형별!D11 -> 526 | E11: 74 | F11: =유형별!R11 -> 50 | G11: =유형별!S11 -> 24 | H11: 26 | I11: =유형별!X11 -> 22 | J11: =유형별!Y11 -> 4 | K11: 100 | L11: 72 | M11: 28 | N11: 0.08051529791
A12: 응암1동 | B12: 1310 | C12: =유형별!C12 -> 718 | D12: =유형별!D12 -> 592 | E12: 76 | F12: =유형별!R12 -> 46 | G12: =유형별!S12 -> 30 | H12: 35 | I12: =유형별!X12 -> 30 | J12: =유형별!Y12 -> 5 | K12: 111 | L12: 76 | M12: 35 | N12: 0.08473282443
A13: 응암2동 | B13: 954 | C13: =유형별!C13 -> 531 | D13: =유형별!D13 -> 423 | E13: 74 | F13: =유형별!R13 -> 48 | G13: =유형별!S13 -> 26 | H13: 36 | I13: =유형별!X13 -> 30 | J13: =유형별!Y13 -> 6 | K13: 110 | L13: 78 | M13: 32 | N13: 0.1153039832
A14: 응암3동 | B14: 1324 | C14: =유형별!C14 -> 732 | D14: =유형별!D14 -> 592 | E14: 90 | F14: =유형별!R14 -> 60 | G14: =유형별!S14 -> 30 | H14: 22 | I14: =유형별!X14 -> 16 | J14: =유형별!Y14 -> 6 | K14: 112 | L14: 76 | M14: 36 | N14: 0.08459214502
A15: 역촌동 | B15: 2158 | C15: =유형별!C15 -> 1206 | D15: =유형별!D15 -> 952 | E15: 202 | F15: =유형별!R15 -> 124 | G15: =유형별!S15 -> 78 | H15: 45 | I15: =유형별!X15 -> 38 | J15: =유형별!Y15 -> 7 | K15: 247 | L15: 162 | M15: 85 | N15: 0.1144578313
A16: 신사1동 | B16: 1249 | C16: =유형별!C16 -> 733 | D16: =유형별!D16 -> 516 | E16: 149 | F16: =유형별!R16 -> 90 | G16: =유형별!S16 -> 59 | H16: 32 | I16: =유형별!X16 -> 24 | J16: =유형별!Y16 -> 8 | K16: 181 | L16: 114 | M16: 67 | N16: 0.1449159327
A17: 신사2동 | B17: 887 | C17: =유형별!C17 -> 506 | D17: =유형별!D17 -> 381 | E17: 78 | F17: =유형별!R17 -> 45 | G17: =유형별!S17 -> 33 | H17: 21 | I17: =유형별!X17 -> 17 | J17: =유형별!Y17 -> 4 | K17: 99 | L17: 62 | M17: 37 | N17: 0.1116121759
A18: 증산동 | B18: 643 | C18: =유형별!C18 -> 378 | D18: =유형별!D18 -> 265 | E18: 42 | F18: =유형별!R18 -> 26 | G18: =유형별!S18 -> 16 | H18: 16 | I18: =유형별!X18 -> 16 | J18: =유형별!Y18 -> 0 | K18: 58 | L18: 42 | M18: 16 | N18: 0.09020217729
A19: 수색동 | B19: 823 | C19: =유형별!C19 -> 438 | D19: =유형별!D19 -> 385 | E19: 63 | F19: =유형별!R19 -> 41 | G19: =유형별!S19 -> 22 | H19: 24 | I19: =유형별!X19 -> 20 | J19: =유형별!Y19 -> 4 | K19: 87 | L19: 61 | M19: 26 | N19: 0.1057108141
A20: 진관동 | B20: 1945 | C20: =유형별!C20 -> 1135 | D20: =유형별!D20 -> 810 | E20: 140 | F20: =유형별!R20 -> 88 | G20: =유형별!S20 -> 52 | H20: 93 | I20: =유형별!X20 -> 77 | J20: =유형별!Y20 -> 16 | K20: 233 | L20: 165 | M20: 68 | N20: 0.1197943445
A22: *발달장애인 수는 2,206명으로 전체 장애인의 10.1%

Sheet Sheet3 (hidden)
A2: 자치구 | B2: 장애유형 | C2: 2023 | G2: 자치구 | H2: 장애유형 | I2: 2022 | M2: 자치구 | N2: 장애유형 | O2: 2021
C3: 계 | D3: 남 | E3: 여 | I3: 계 | J3: 남 | K3: 여 | O3: 계 | P3: 남 | Q3: 여
A4: 은평구 | B4: 합 계 | C4: 21602 | D4: 12604 | E4: 8998 | G4: 은평구 | H4: 합 계 | I4: =SUM(I5:I19) -> 21753 | J4: =SUM(J5:J19) -> 12687 | K4: 9066 | M4: 은평구 | N4: 합 계 | O4: 21753 | P4: 12704 | Q4: 9049
B5: 지체 | C5: 8636 | D5: 4714 | E5: 3922 | H5: 지체 | I5: 8837 | J5: 4842 | K5: 3995 | N5: 지체 | O5: 8917 | P5: 4897 | Q5: 4020
B6: 시각 | C6: 2265 | D6: 1340 | E6: 925 | H6: 시각 | I6: 2274 | J6: 1364 | K6: 910 | N6: 시각 | O6: 2315 | P6: 1387 | Q6: 928
B7: 청각 | C7: 3350 | D7: 1869 | E7: 1481 | H7: 청각 | I7: 3350 | J7: 1853 | K7: 1497 | N7: 청각 | O7: 3282 | P7: 1814 | Q7: 1468
B8: 언어 | C8: 173 | D8: 124 | E8: 49 | H8: 언어 | I8: 181 | J8: 134 | K8: 47 | N8: 언어 | O8: 177 | P8: 129 | Q8: 48
B9: 지적 | C9: 1863 | D9: 1222 | E9: 641 | H9: 지적 | I9: 1828 | J9: 1200 | K9: 628 | N9: 지적 | O9: 1805 | P9: 1185 | Q9: 620
B10: 뇌병변 | C10: 2188 | D10: 1307 | E10: 881 | H10: 뇌병변 | I10: 2218 | J10: 1318 | K10: 900 | N10: 뇌병변 | O10: 2244 | P10: 1349 | Q10: 895
B11: 자폐성 | C11: 450 | D11: 377 | E11: 73 | H11: 자폐성 | I11: 396 | J11: 333 | K11: 63 | N11: 자폐성 | O11: 355 | P11: 298 | Q11: 57
B12: 정신 | C12: 1137 | D12: 696 | E12: 441 | H12: 정신 | I12: 1148 | J12: 705 | K12: 443 | N12: 정신 | O12: 1162 | P12: 718 | Q12: 444
B13: 신장 | C13: 928 | D13: 569 | E13: 359 | H13: 신장 | I13: 894 | J13: 542 | K13: 352 | N13: 신장 | O13: 874 | P13: 533 | Q13: 341
B14: 심장 | C14: 49 | D14: 26 | E14: 23 | H14: 심장 | I14: 55 | J14: 24 | K14: 31 | N14: 심장 | O14: 55 | P14: 26 | Q14: 29
B15: 호흡기 | C15: 122 | D15: 88 | E15: 34 | H15: 호흡기 | I15: 120 | J15: 86 | K15: 34 | N15: 호흡기 | O15: 130 | P15: 92 | Q15: 38
B16: 간 | C16: 164 | D16: 109 | E16: 55 | H16: 간 | I16: 168 | J16: 113 | K16: 55 | N16: 간 | O16: 166 | P16: 114 | Q16: 52
B17: 안면 | C17: 25 | D17: 13 | E17: 12 | H17: 안면 | I17: 22 | J17: 11 | K17: 11 | N17: 안면 | O17: 23 | P17: 12 | Q17: 11
B18: 장루.요루 | C18: 187 | D18: 118 | E18: 69 | H18: 장루.요루 | I18: 194 | J18: 126 | K18: 68 | N18: 장루.요루 | O18: 181 | P18: 114 | Q18: 67
B19: 뇌전증 | C19: 65 | D19: 32 | E19: 33 | H19: 뇌전증 | I19: 68 | J19: 36 | K19: 32 | N19: 뇌전증 | O19: 67 | P19: 36 | Q19: 31
C22: 2023 | D22: 2022 | E22: 2021 | G22: 2024 | H22: 2025 | I22: 2026 | J22: 2027 | K22: 2028
A23: 외부신체기능장애 | C23: =SUM(C5,C10,C6,C7,C8,C17) -> 16637 | D23: =SUM(I5,I10,I6,I7,I8,I17) -> 16882 | E23: =SUM(O5,O10,O6,O7,O8,O17) -> 16958 | G23: =C23+C23*$G$29 -> 16478.99841 | H23: =G23+G23*$G$29 -> 16322.49736 | I23: =H23+H23*$G$29 -> 16167.48261 | J23: =I23+I23*$G$29 -> 16013.94002 | K23: =J23+J23*$G$29 -> 15861.85563
A24: 내부기관장애 | C24: =SUM(C13,C14,C16,C15,C18,C19) -> 1515 | D24: =SUM(I13:I16,I18,I19) -> 1499 | E24: =SUM(O13:O16,O18:O19) -> 1473 | G24: =C24+C24*$G$30 -> 1536.4524 | H24: =G24+G24*$G$30 -> 1558.208566 | I24: =H24+H24*$G$30 -> 1580.272799 | J24: =I24+I24*$G$30 -> 1602.649462 | K24: =J24+J24*$G$30 -> 1625.342978
A25: 정신적장애 | C25: =SUM(C9,C12,C11) -> 3450 | D25: =SUM(I9,I11,I12) -> 3372 | E25: =SUM(O9,O11,O12) -> 3322 | G25: =C25+C25*$G$31 -> 3515.8605 | H25: =G25+G25*$G$31 -> 3582.978277 | I25: =H25+H25*$G$31 -> 3651.377332 | J25: =I25+I25*$G$31 -> 3721.082126 | K25: =J25+J25*$G$31 -> 3792.117583
A26: 계 | C26: =SUM(C23:C25) -> 21602 | D26: =SUM(D23:D25) -> 21753 | E26: =SUM(E23:E25) -> 21753 | G26: =SUM(G23:G25) -> 21531.31131 | H26: =SUM(H23:H25) -> 21463.68421 | I26: =SUM(I23:I25) -> 21399.13274 | J26: =SUM(J23:J25) -> 21337.67161 | K26: =SUM(K23:K25) -> 21279.3162
A29: 외부신체기능장애 | C29: =(D23-C23)/D23 -> 0.01451249852 | D29: 0.004481660573 | F29: =(C29+D29)/2 -> 0.009497079546 | G29: -0.009497
A30: 내부기관장애 | C30: -0.01067378252 | D30: -0.01765105227 | F30: =(C30+D30)/2 -> -0.0141624174 | G30: 0.01416
A31: 정신적장애 | C31: -0.0231316726 | D31: -0.01505117399 | F31: =(C31+D31)/2 -> -0.01909142329 | G31: 0.01909
A32: 계
C36: 2024 | D36: 2025 | E36: 2026 | F36: 2027 | G36: 2028
C37: -0.0026
A38: 외부신체기능장애 | B38: 16637 | C38: 16593.7438 | D38: 16550.60007 | E38: 16507.56851 | F38: 16464.64883 | G38: 16421.84074
A39: 내부기관장애 | B39: 1515 | C39: 1511.061 | D39: 1507.132241 | E39: 1503.213698 | F39: 1499.305342 | G39: 1495.407148
A40: 정신적장애 | B40: 3450 | C40: 3441.03 | D40: 3432.083322 | E40: 3423.159905 | F40: 3414.25969 | G40: 3405.382614
B41: 21602 | C41: 21545.8348 | D41: 21489.81563 | E41: 21433.94211 | F41: 21378.21386 | G41: 21322.6305
